Workbook

Sheet Ring-pan y Huella CO2
F1: Costo cemento : | H1: 2.1 | I1: Pesos/kg
F2: 1 USD = | H2: 18 | I2: Pesos
N3: SOLUCIONES PRACTICAS LIEBHERR PARA BAJAR SU HUELLA CO2 :
B4: EQUIPO FRANCES SA DE CV, Colima, 21 Jun. 2020, versión Sep. 22 2022. | F4: ESTUDIO AMASADO CONCRETO : PARTE N°4 : Ahorros y soluciones LIEBHERR. 4.1. P6
F5: 1. Ahorro cemento mezclador LIEBHERR versus Revolvedora Olla o Tilt.
F6: 2. Mejora huella CO2 según Mezclador versus Olla o Tilt + Equipo de Transporte.
F7: 3. Ahorro cemento+CO2 si utiliza una Sistema de Medición Humedad LIEBHERR.
G8: m3/año | H8: Agua | I8: Cemento | J8: Arena húmeda | N8: 1. Fase AMASADO : | T8: 2. Fase TRANSPORTE | V8: 2. Fase COLOCACION | X8: 4. FIN DE VIDA :
C9: Sintesis financiera : | D9: =+E19 -> Ring-pan 2.5 D | F9: Bloque 10-20 MPa | G9: 0 | H9: 0 | I9: 0 | J9: 0 | L9: SELECCIONAR : | N9: MEZCLADOR : | P9: PLANTA : | T9: REVOLVEDORA : | V9: BANDOLLA + ELECTRICA :
C10: Ahorros totales Mezclador: | D10: =+F23 -> 494684.2 | E10: =+(D10/G45)*H2 -> 148.40526 | F10: 25 MPa | G10: 0.3 | H10: 180 | I10: 250 | J10: 600 | L10: Revolvedora Olla | M10: 60
C11: Costo anual : | D11: =+F27 -> 45127.93333 | E11: =+(D11/G45)*H2 -> 13.53838 | F11: 30 MPa | G11: 0.3 | H11: 180 | I11: 300 | J11: 600 | L11: Ring-pan 2.5 D | M11: 106 | AB11: Añadir Tilt para Holcim
C12: Beneficio adicional : | D12: =+F29 -> 449556.2667 | E12: =+E10-E11 -> 134.86688 | F12: 35 MPa | G12: 0.2 | H12: 180 | I12: 430 | J12: 600 | L12: Promedio actual | M12: =+H45 -> 25 | AB12: y Versión Twin-shaft Liebherr
C13: Meses amortización : | D13: =+F30 -> 6.19200532 | F13: Vigueta 35-45 MPa | G13: 0.2 | H13: 180 | I13: 450 | J13: 600 | K13: Huella CO2 cemento : | L13: 622 | M13: Su huella actual : | N13: Ring-pan Twin-shaft | O13: Sensor humedad | P13: Mobilmix | Q13: LCM1 | R13: LCM3 Twin- | S13: Mobile Twin | T13: Revolvedora eléctrica : | V13: BANDOLLA | W13: Estacionaria | X13: Reciclador LRS
C14: Mejora Huella CO2 : | D14: =+F33 -> -2204608.92 | E14: =+D14/G45 -> -36.743482 | F14: Durmiente 65 MPa | G14: 0 | J14: 0 | K14: Bajada huella cemento : | L14: 0 | M14: ='Cálculo cemento'!$L$25 -> 212.102 | N14: Instalar o plataforma. | O14: en Arena y Agregado | P14: Rin-pan 0.5 m3 | Q14: Rin-pan 1.0 m3 | R14: -shaft3.0 m3 | S14: shaft 4.5 m3 | T14: Chasis | U14: Remolque | W14: Eléctrica | Z14: Opción 2 | AA14: Opcion 3 | AD14: AMASADO | AH14: TRANSPORTE | AL14: TOTAL | AM14: MEJORA | AO14: Precio 80 Euros/t | AP14: DIFERENCIA | AQ14: Precio 80 Euros/t
C15: Ahorro control humedad | D15: =+L59 -> 120555.5556 | E15: =+M47 -> 36.16666667 | F15: Producción anual: | G15: 60000 | L15: Su nueva huella si nuevo cemento : | M15: ='Cálculo cemento'!$N$25 -> 212.102 | N15: EMISION Y HUELLA CO2 (cálculo con metodologia LCA oficial y Huella CO2 oficial electricidad CFE 0.494 KG/KWh) : | Z15: Cemento-Mezclador : | AA15: Transporte Parada | AC15: #CementoSistema | AD15: CEMENTO | AE15: ENERGIA | AF15: TOTAL | AG15: #TransporteParadas | AH15: PARADAS | AI15: #TransporteActivo | AJ15: ACTIVO | AK15: TOTAL | AM15: / OLLA % | AN15: KG | AO15: ahorro USD/m3 | AP15: CON TILT | AQ15: ahorro USD/m3
B16: INDICADORES ECONÓMICOS FASE AMASADO : | F16: Año n°1 | G16: Año n°2 | H16: Año n°3 | I16: Año n°4 | J16: Año n°5 | K16: Total 5 años | L16: Año 6 | N16: SU HUELLA CO2 ACTUAL : con | P16: Revolvedora Olla | Q16: %/Total | R16: HUELLA con | S16: Ring-pan 2.5 D | T16: Mejoras: | U16: HUELLA CO2 CON OTRAS OPCIONES : | W16: Mejoras con Huella Actual : | Z16: Ring-pan 1.0 M | AA16: Revolvedora Diesel | AB16: Rev. Diesel | AD16: ='Factor CO2'!I28 -> 12726120 | AE16: ='Factor CO2'!J28 -> 18480 | AF16: ='Factor CO2'!K28 -> 12744600 | AG16: Revolvedora Diesel | AH16: ='Factor CO2'!L28 -> 39600 | AI16: Camión Diesel | AJ16: ='Factor CO2'!M28 -> 198000 | AK16: ='Factor CO2'!N28 -> 237600 | AL16: ='Factor CO2'!O28 -> 12982200 | AM16: 0 | AN16: 0 | AP16: 0
E17: Ahorro cemento Sensor Humedad si 3% variación : | F17: =+L59 -> 120555.5556 | G17: =+F17 -> 120555.5556 | H17: =+F17 -> 120555.5556 | I17: =+F17 -> 120555.5556 | J17: =+F17 -> 120555.5556 | K17: =+SUM(F17:J17) -> 602777.7778 | L17: =+F17 -> 120555.5556 | N17: Amasado Cemento | O17: Revolvedora Olla | P17: 12726120 | Q17: =+P17/$P$23 -> 0.9801114572 | R17: Ring-pan 2.5 D | S17: 10519351.08 | T17: =-(P17-S17)/P17 -> -0.1734046921 | U17: Ring-pan 2.5 D | V17: 10519351.08 | W17: =+(V17-P17)/P17 -> -0.1734046921 | X17: =+V17-P17 -> -2206768.92 | Z17: Ring-pan 1.5 D | AA17: Revolvedora Gas | AB17: Rev. Gas | AD17: ='Factor CO2'!I29 -> 12726120 | AE17: ='Factor CO2'!J29 -> 14760 | AF17: ='Factor CO2'!K29 -> 12740880 | AG17: Revolvedora Gas | AH17: ='Factor CO2'!L29 -> 31680 | AI17: Camión Gas | AJ17: ='Factor CO2'!M29 -> 158400 | AK17: ='Factor CO2'!N29 -> 190080 | AL17: ='Factor CO2'!O29 -> 12930960 | AM17: =+(AL17-$AL$16)/$AL$16 -> -0.003946942737 | AN17: =+AL17-$AL$16 -> -51240 | AO17: =-0.088*AN17 -> 4509.12 | AP17: =+AL17-$AL$20 -> 180602.4 | AQ17: =-0.088*AP17 -> -15893.0112
F18: =+M47 -> 36.16666667 | G18: Ahorros con Mezclador LIEBHERR versus Revolvedora : | N18: Amasado Energia | O18: Diesel | P18: 20640 | Q18: =+P18/$P$23 -> 0.001589604724 | R18: Electricidad | S18: =+AE28 -> 20640 | T18: =-(P18-S18)/P18 -> 0 | U18: Electricidad | V18: 20640 | W18: =+(V18-P18)/P18 -> 0 | X18: =+V18-P18 -> 0 | Z18: Ring-pan 1.5 D | AA18: Revolvedora Eléctrica | AB18: Rev Elec Diesel | AD18: ='Factor CO2'!I30 -> 12726120 | AE18: ='Factor CO2'!J30 -> 12120 | AF18: ='Factor CO2'!K30 -> 12738240 | AG18: Revolvedora Eléctrica | AH18: ='Factor CO2'!L30 -> 25920 | AJ18: ='Factor CO2'!M30 -> 198000 | AK18: ='Factor CO2'!N30 -> 223920 | AL18: ='Factor CO2'!O30 -> 12962160 | AM18: -0.001543652077 | AN18: -20040 | AO18: =-0.088*AN18 -> 1763.52 | AP18: 211802.4 | AQ18: =-0.088*AP18 -> -18638.6112
D19: Ahorro 8 a 19% cemento con : | E19: Ring-pan 2.5 D | F19: 413917 | G19: =+F19 -> 413917 | H19: =+F19 -> 413917 | I19: =+F19 -> 413917 | J19: =+F19 -> 413917 | K19: =+SUM(F19:J19) -> 2069585 | L19: =+F19 -> 413917 | N19: Total Amasado | P19: =+P18+P17 -> 12746760 | Q19: =+Q17+Q18 -> 0.9817010619 | S19: =+S18+S17 -> 10539991.08 | T19: =-(P19-S19)/P19 -> -0.1731239091 | V19: =+V18+V17 -> 10539991.08 | W19: -0.1731239091 | X19: -2206768.92 | Z19: Ring-pan 2.5 D | AA19: Opción 4 | AB19: Rev Elec Gas | AD19: ='Factor CO2'!I31 -> 12726120 | AE19: ='Factor CO2'!J31 -> 12120 | AF19: ='Factor CO2'!K31 -> 12738240 | AH19: ='Factor CO2'!L31 -> 25920 | AJ19: ='Factor CO2'!M31 -> 158400 | AK19: ='Factor CO2'!N31 -> 184320 | AL19: ='Factor CO2'!O31 -> 12922560 | AM19: -0.00459398253 | AN19: -59640 | AO19: 5248.32 | AP19: 172202.4 | AQ19: -15153.8112
E20: Ahorro inversión Revolvedora : | F20: =+H110 -> 71748 | G20: 0 | H20: 0 | I20: 0 | J20: 0 | K20: =+SUM(F20:J20) -> 71748 | L20: 0 | N20: Transporte Paradas | O20: Diesel | P20: =+AH16 -> 39600 | Q20: =+P20/$P$23 -> 0.003049823018 | R20: Diesel | S20: =+AH28 -> 39600 | T20: =-(P20-S20)/P20 -> 0 | U20: Revolvedora Eléctrica | V20: 25920 | W20: -0.3454545455 | X20: -13680 | Z20: Twin-shaft 1.25 | AA20: Transporte Activo | AB20: Tilt Diesel | AC20: Tilt | AD20: ='Factor CO2'!I32 -> 12471597.6 | AE20: ='Factor CO2'!J32 -> 41160 | AF20: =+AE20+AD20 -> 12512757.6 | AH20: ='Factor CO2'!L32 -> 39600 | AJ20: ='Factor CO2'!M32 -> 198000 | AK20: =+AJ20+AH20 -> 237600 | AL20: =+AK20+AF20 -> 12750357.6 | AM20: -0.01785848315 | AN20: -231842.4 | AO20: 20402.1312 | AP20: 0 | AQ20: 0
E21: Ahorro diesel Revolvedera Olla : | F21: 9019.2 | G21: =+F21 -> 9019.2 | H21: =+F21 -> 9019.2 | I21: =+F21 -> 9019.2 | J21: =+F21 -> 9019.2 | K21: 45096 | L21: =+F21 -> 9019.2 | N21: Transporte Activo | O21: Diesel | P21: =+AJ16 -> 198000 | Q21: =+P21/$P$23 -> 0.01524911509 | R21: Diesel | S21: =+AJ28 -> 198000 | T21: 0 | U21: Camión Gas | V21: 158400 | W21: -0.2 | X21: -39600 | Z21: Twin-shaft 2.25 | AA21: Camión Diesel | AB21: Tilt Gas | AD21: ='Factor CO2'!I33 -> 12471597.6 | AE21: ='Factor CO2'!J33 -> 41160 | AF21: =+AE21+AD21 -> 12512757.6 | AH21: ='Factor CO2'!L33 -> 31680 | AJ21: ='Factor CO2'!M33 -> 158400 | AK21: =+AJ21+AH21 -> 190080 | AL21: =+AK21+AF21 -> 12702837.6 | AM21: -0.0215188797 | AN21: -279362.4 | AO21: 24583.8912 | AP21: =+AL21-$AL$20 -> -47520 | AQ21: 4181.76
E22: Ahorro/consumo electricidad Revolvedera Tilt : | F22: 0 | G22: =+F22 -> 0 | H22: =+F22 -> 0 | I22: =+F22 -> 0 | J22: =+F22 -> 0 | K22: =+SUM(F22:J22) -> 0 | L22: =+F22 -> 0 | N22: Total Transporte | P22: =+P21+P20 -> 237600 | Q22: =+Q21+Q20 -> 0.01829893811 | S22: =+S21+S20 -> 237600 | T22: 0 | V22: =+V21+V20 -> 184320 | W22: -0.2242424242 | X22: -53280 | Z22: Twin-shaft 3.0 | AA22: Camión Gas | AB22: Tilt Rev Elec Diesel | AD22: ='Factor CO2'!I34 -> 12471597.6 | AE22: ='Factor CO2'!J34 -> 41160 | AF22: 12512757.6 | AH22: ='Factor CO2'!L34 -> 25920 | AJ22: ='Factor CO2'!M34 -> 198000 | AK22: 223920 | AL22: 12736677.6 | AM22: -0.01891223367 | AN22: -245522.4 | AO22: 21605.9712 | AP22: -13680 | AQ22: 1203.84
D23: Ahorros totales con : | E23: Ring-pan 2.5 D | F23: =+F19+F20+F21 -> 494684.2 | G23: 422936.2 | H23: 422936.2 | I23: 422936.2 | J23: 422936.2 | K23: 2186429 | L23: 422936.2 | N23: GRAN TOTAL | P23: =+P22+P19 -> 12984360 | Q23: =+Q22+Q19 -> 1 | S23: =+S22+S19 -> 10777591.08 | T23: -0.1699559254 | V23: =+V22+V19 -> 10724311.08 | W23: -0.1740593237 | X23: -2260048.92 | Z23: Twin-shaft 4.5 | AB23: Tilt Rev Elec Gas | AD23: ='Factor CO2'!I35 -> 12471597.6 | AE23: ='Factor CO2'!J35 -> 41160 | AF23: 12512757.6 | AH23: ='Factor CO2'!L35 -> 25920 | AJ23: ='Factor CO2'!M35 -> 158400 | AK23: 184320 | AL23: 12697077.6 | AM23: -0.02196256413 | AN23: -285122.4 | AO23: 25090.7712 | AP23: -53280 | AQ23: 4688.64
G24: Costo amortización Mezclador LIEBHERR : | K24: Precio inversión : | V24: Ahorro CO2 con control humedad con FMS LIEBHERR : | W24: =+X24/P23 -> -0.01717191916 | X24: =-'Cálculo cemento'!$V$26 -> -222966.3803 | Z24: MTS 4.5 Móvil | AB24: Twin-shaft Diesel | AC24: Twin-shaft 3.5 | AD24: ='Factor CO2'!I36 -> 11155657.08 | AE24: ='Factor CO2'!J36 -> 14760 | AF24: ='Factor CO2'!K36 -> 11170417.08 | AH24: ='Factor CO2'!L36 -> 39600 | AJ24: ='Factor CO2'!M36 -> 198000 | AK24: ='Factor CO2'!N36 -> 237600 | AL24: ='Factor CO2'!O36 -> 11408017.08 | AM24: =+(AL24-$AL$16)/$AL$16 -> -0.1212570227 | AN24: =+AL24-$AL$16 -> -1574182.92 | AO24: =-0.088*AN24 -> 138528.097 | AP24: =+AL24-$AL$20 -> -1342340.52 | AQ24: =-0.088*AP24 -> 118125.9658
D25: Amortización : | E25: Ring-pan 2.5 D | F25: =+K25/5 -> 43494.8 | G25: =+F25 -> 43494.8 | H25: =+F25 -> 43494.8 | I25: =+F25 -> 43494.8 | J25: =+F25 -> 43494.8 | K25: 217474 | L25: 0 | N25: =+N17 -> Amasado Cemento | O25: =+Q17 -> 0.9801114572 | R25: =+N25 -> Amasado Cemento | S25: =+S17-P17 -> -2206768.92 | U25: =+N25 -> Amasado Cemento | V25: =+V17-P17 -> -2206768.92 | Z25: Planta Mobilmix 0.5 | AB25: Twin-shaft Gas | AD25: ='Factor CO2'!I37 -> 11155657.08 | AE25: ='Factor CO2'!J37 -> 14760 | AF25: ='Factor CO2'!K37 -> 11170417.08 | AH25: ='Factor CO2'!L37 -> 31680 | AJ25: ='Factor CO2'!M37 -> 158400 | AK25: ='Factor CO2'!N37 -> 190080 | AL25: ='Factor CO2'!O37 -> 11360497.08 | AM25: -0.1249174192 | AN25: -1621702.92 | AO25: 142709.857 | AP25: =+AL25-$AL$20 -> -1389860.52 | AQ25: 122307.7258
E26: Costo consumo de electricidad : | F26: 1633.133333 | G26: =+F26 -> 1633.133333 | H26: =+F26 -> 1633.133333 | I26: =+F26 -> 1633.133333 | J26: =+F26 -> 1633.133333 | K26: =+SUM(F26:J26) -> 8165.666667 | L26: =+F26 -> 1633.133333 | N26: =+N18 -> Amasado Energia | O26: =+Q18 -> 0.001589604724 | R26: =+N26 -> Amasado Energia | S26: =+S18-P18 -> 0 | U26: =+N26 -> Amasado Energia | V26: =+V18-P18 -> 0 | Z26: Planta LCM 1 | AB26: Twin-shaft Rev Elec Diesel | AD26: ='Factor CO2'!I38 -> 11155657.08 | AE26: ='Factor CO2'!J38 -> 14760 | AF26: ='Factor CO2'!K38 -> 11170417.08 | AH26: ='Factor CO2'!L38 -> 25920 | AJ26: ='Factor CO2'!M38 -> 198000 | AK26: ='Factor CO2'!N38 -> 223920 | AL26: ='Factor CO2'!O38 -> 11394337.08 | AM26: -0.1223107732 | AN26: -1587862.92 | AO26: 139731.937 | AP26: -1356020.52 | AQ26: 119329.8058
D27: Total costos mezclado | E27: Ring-pan 2.5 D | F27: =+F25+F26 -> 45127.93333 | G27: =+F27 -> 45127.93333 | H27: =+F27 -> 45127.93333 | I27: =+F27 -> 45127.93333 | J27: =+F27 -> 45127.93333 | K27: =+SUM(F27:J27) -> 225639.6667 | L27: =+F27 -> 45127.93333 | N27: =+N20 -> Transporte Paradas | O27: =+Q20 -> 0.003049823018 | R27: =+N20 -> Transporte Paradas | S27: =-(S20-P20) -> 0 | U27: Transporte Paradas | V27: =+V20-P20 -> -13680 | Z27: Planta LCM 3 | AB27: Twin-shaft Rev Elec Gas | AD27: ='Factor CO2'!I39 -> 11155657.08 | AE27: ='Factor CO2'!J39 -> 14760 | AF27: ='Factor CO2'!K39 -> 11170417.08 | AH27: ='Factor CO2'!L39 -> 25920 | AJ27: ='Factor CO2'!M39 -> 158400 | AK27: ='Factor CO2'!N39 -> 184320 | AL27: ='Factor CO2'!O39 -> 11354737.08 | AM27: -0.1253611037 | AN27: -1627462.92 | AO27: 143216.737 | AP27: -1395620.52 | AQ27: 122814.6058
G28: Balance financiero = Beneficio adicional con Mezclador LIEBHERR : | N28: =+N21 -> Transporte Activo | O28: =+Q21 -> 0.01524911509 | R28: Transporte Activo | S28: =-(S21-P21) -> 0 | U28: Transporte Activo | V28: =+V21-P21 -> -39600 | Z28: Opción 1 | AB28: Ring-pan Diesel | AC28: Ring-pan 2.5 D | AD28: ='Factor CO2'!I40 -> 10519351.08 | AE28: ='Factor CO2'!J40 -> 20640 | AF28: ='Factor CO2'!K40 -> 10539991.08 | AH28: ='Factor CO2'!L40 -> 39600 | AJ28: ='Factor CO2'!M40 -> 198000 | AK28: ='Factor CO2'!N40 -> 237600 | AL28: ='Factor CO2'!O40 -> 10777591.08 | AM28: -0.1698178213 | AN28: -2204608.92 | AO28: 194005.585 | AP28: -1972766.52 | AQ28: 173603.4538
D29: Beneficio adicional con : | E29: Ring-pan 2.5 D | F29: =+F23-F27 -> 449556.2667 | G29: =+G23-G27 -> 377808.2667 | H29: 377808.2667 | I29: 377808.2667 | J29: 377808.2667 | K29: 1960789.333 | L29: 377808.2667 | Z29: Revolvedora Olla | AB29: Ring-pan Gas | AD29: ='Factor CO2'!I41 -> 10519351.08 | AE29: ='Factor CO2'!J41 -> 20640 | AF29: ='Factor CO2'!K41 -> 10539991.08 | AH29: ='Factor CO2'!L41 -> 31680 | AJ29: ='Factor CO2'!M41 -> 158400 | AK29: ='Factor CO2'!N41 -> 190080 | AL29: ='Factor CO2'!O41 -> 10730071.08 | AM29: -0.1734782179 | AN29: -2252128.92 | AO29: 198187.345 | AP29: -2020286.52 | AQ29: 177785.2138
D30: Años para pagar y cumulativo: | E30: Ring-pan 2.5 D | F30: =+(K27/(K23/60)) -> 6.19200532 | G30: =+F29+G29 -> 827364.5333 | H30: =+G30+H29 -> 1205172.8 | I30: =+H30+I29 -> 1582981.067 | J30: =+I30+J29 -> 1960789.333 | L30: =+J30+L29 -> 2338597.6 | Z30: Revolvedora Tilt | AB30: Ring-pan Rev Elec Diesel | AD30: ='Factor CO2'!I42 -> 10519351.08 | AE30: ='Factor CO2'!J42 -> 20640 | AF30: ='Factor CO2'!K42 -> 10539991.08 | AH30: ='Factor CO2'!L42 -> 25920 | AJ30: ='Factor CO2'!M42 -> 198000 | AK30: ='Factor CO2'!N42 -> 223920 | AL30: ='Factor CO2'!O42 -> 10763911.08 | AM30: -0.1708715718 | AN30: -2218288.92 | AO30: 195209.425 | AP30: -1986446.52 | AQ30: 174807.2938
G31: Ahorro CO2 adicional con Mezclador M LIEBHERR : | AB31: Ring-pan Rev Elec Gas | AD31: ='Factor CO2'!I43 -> 10519351.08 | AE31: ='Factor CO2'!J43 -> 20640 | AF31: ='Factor CO2'!K43 -> 10539991.08 | AH31: ='Factor CO2'!L43 -> 25920 | AJ31: ='Factor CO2'!M43 -> 158400 | AK31: ='Factor CO2'!N43 -> 184320 | AL31: ='Factor CO2'!O43 -> 10724311.08 | AM31: -0.1739219023 | AN31: -2257888.92 | AO31: 198694.225 | AP31: -2026046.52 | AQ31: 178292.0938
D32: Ahorro valor CO2 con | E32: Ring-pan 2.5 D | F32: 194005.585 | G32: =+F32 -> 194005.585 | H32: =+F32 -> 194005.585 | I32: =+F32 -> 194005.585 | J32: =+F32 -> 194005.585 | K32: =+SUM(F32:J32) -> 970027.9248 | L32: =+F32 -> 194005.585 | AB32: Porcentaje del TOTAL | AD32: =+SUM(AD16:AD31)/SUM($AL$16:$AL$31) -> 0.9806096605 | AE32: =+SUM(AE16:AE31)/SUM($AL$16:$AL$31) -> 0.001902318139 | AF32: =+SUM(AF16:AF31)/SUM($AL$16:$AL$31) -> 0.9825119787 | AH32: =+SUM(AH16:AH31)/SUM($AL$16:$AL$31) -> 0.002575755078 | AJ32: =+SUM(AJ16:AJ31)/SUM($AL$16:$AL$31) -> 0.01491226624 | AK32: =+SUM(AK16:AK31)/SUM($AL$16:$AL$31) -> 0.01748802132
D33: Evolución Huella CO2 con | E33: Ring-pan 2.5 D | F33: -2204608.92 | G33: =+F33 -> -2204608.92 | H33: =+G33 -> -2204608.92 | I33: -2204608.92 | J33: -2204608.92 | K33: =+SUM(F33:J33) -> -11023044.6 | L33: =+F33 -> -2204608.92
E34: Ahorro CO2 si control humedad 2 % | F34: =+X24 -> -222966.3803 | G34: =+F34 -> -222966.3803 | H34: =+G34 -> -222966.3803 | I34: =+H34 -> -222966.3803 | J34: =+I34 -> -222966.3803 | K34: =+SUM(F34:J34) -> -1114831.902 | AC34: =+AB30 -> Ring-pan Rev Elec Diesel | AD34: =+AL30 -> 10763911.08 | AE34: =+AC34 -> Ring-pan Rev Elec Diesel | AF34: =+AM30 -> -0.1708715718
E35: SU PRODUCCIÓN DE CONCRETO ANUAL : | AC35: =+AB31 -> Ring-pan Rev Elec Gas | AD35: =+AL31 -> 10724311.08 | AE35: Ring-pan Rev Elec Gas | AF35: =+AM31 -> -0.1739219023
E36: Resistencia concreto | G36: Producción | H36: Formulación kg/m3 | J36: Agregados
E37: Mpa | F37: kg/cm2* | G37: anual | H37: Agua | I37: Cemento | J37: húmedos | K37: Total | L37: Agua/Cem | M37: %Agua | N37: MPa teórica
E38: Bloque 10-20 MPa | F38: 90-200 kg/cm2 | G38: =+G9 -> 0 | H38: =+H9 -> 0 | I38: 0 | J38: 0 | K38: =+SUM(H38:J38) -> 0 | L38: =IFERROR('Cálculo humedad'!J27,0) -> 0 | M38: =IFERROR(+H38/K38,0) -> 0 | N38: ='Cálculo humedad'!$K$27 -> 0
E39: 25 MPa | F39: 250 kg/cm2 | G39: =+G10 -> 0.3 | H39: 180 | I39: 250 | J39: 600 | K39: =+SUM(H39:J39) -> 1030 | L39: =IFERROR('Cálculo humedad'!J28,0) -> 0.72 | M39: =IFERROR(+H39/K39,0) -> 0.1747572816 | N39: ='Cálculo humedad'!$K$28 -> 17.77777778
E40: 30 MPa | F40: 300-320 kg/cm2 | G40: 0.3 | H40: 180 | I40: 300 | J40: 600 | K40: 1080 | L40: =IFERROR('Cálculo humedad'!J30,0) -> 0.6 | M40: =IFERROR(+H40/K40,0) -> 0.1666666667 | N40: ='Cálculo humedad'!K30 -> 23.33333333
E41: 35 MPa | F41: 350-400 kg/cm2 | G41: 0.2 | H41: 180 | I41: 430 | J41: 600 | K41: =+SUM(H41:J41) -> 1210 | L41: =IFERROR('Cálculo humedad'!J31,0) -> 0.4186046512 | M41: 0.1487603306 | N41: ='Cálculo humedad'!K31 -> 37.77777778
E42: Vigueta 350-45 Mpa | F42: 350-450 kg/cm2 | G42: 0.2 | H42: 180 | I42: 450 | J42: 600 | K42: 1230 | L42: ='Cálculo humedad'!J33 -> 0.4 | M42: 0.1463414634 | N42: ='Cálculo humedad'!K33 -> 40
E43: Durmiente 65 Mpa | F43: 660 kg/cm2 | G43: 0 | H43: 0 | I43: 0 | J43: 0 | K43: 0 | L43: ='Cálculo humedad'!J34 -> 0 | M43: 0 | N43: ='Cálculo humedad'!K34 -> 0
E44: * 1 kg/cm2 = 1,02 Mpa | F44: Total detallado % : | G44: =+SUM(G38:G43) -> 1 | H44: m3/hora | J44: Humedad mas baja : | K44: 0.01
F45: Total producido m3: | G45: =+G15 -> 60000 | H45: =+G45/(8*6*50) -> 25 | J45: Humedad mas alta : | K45: 0.05
M46: Ahorro cemento y CO2 si 3% h°:
K47: Ahorro cemento : | L47: =+L59 -> 120555.5556 | M47: =+(L47*H2)/G45 -> 36.16666667
E48: SI UTILIZAN UNA SONDA HUMEDAD FMS LIEBHERR : AHORRO CEMENTO y CO2. | K48: Mejora Huella CO2 : | L48: ='Cálculo cemento'!$V$26 -> 222966.3803 | M48: =+L48/G45 -> 3.716106339
E50: Resistencia concreto | G50: Si variación 1% corregida | I50: Si variación 2% corregida | K50: Si variación 3% corregida
E51: Mpa | F51: kg/cm2* | G51: Bajada MPa | H51: USD cemento | I51: Bajada MPa | J51: USD cemento | K51: Bajada MPa | L51: USD cemento | O51: Variación 1% | P51: Variación 2% | Q51: Variación 3%
E52: =+E38 -> Bloque 10-20 MPa | F52: 90-200 kg/cm2 | G52: ='Cálculo humedad'!$J$39 -> 0 | H52: ='Cálculo humedad'!$L$39 -> 0 | I52: ='Cálculo humedad'!$J$40 -> 0 | J52: ='Cálculo humedad'!$L$40 -> 0 | K52: ='Cálculo humedad'!$J$41 -> 0 | L52: ='Cálculo humedad'!$L$41 -> 0 | N52: =+E52 -> Bloque 10-20 MPa | O52: =+H52 -> 0 | P52: =+J52 -> 0 | Q52: =+L52 -> 0
E53: 25 MPa | F53: 250 kg/cm2 | G53: ='Cálculo humedad'!$J$44 -> -0.8960573477 | H53: ='Cálculo humedad'!$L$44 -> 9408.602151 | I53: ='Cálculo humedad'!$J$45 -> -1.736111111 | J53: ='Cálculo humedad'!$L$45 -> 18229.16667 | K53: ='Cálculo humedad'!$J$46 -> -2.525252525 | L53: ='Cálculo humedad'!$L$46 -> 26515.15152 | N53: =+E53 -> 25 MPa | O53: =+H53 -> 9408.602151 | P53: =+J53 -> 18229.16667 | Q53: 26515.15152
E54: 30 MPa | F54: 300-320 kg/cm2 | G54: ='Cálculo humedad'!$J$50 -> -1.075268817 | H54: ='Cálculo humedad'!$L$50 -> 11290.32258 | I54: ='Cálculo humedad'!$J$51 -> -2.083333333 | J54: ='Cálculo humedad'!$L$51 -> 21875 | K54: ='Cálculo humedad'!$J$52 -> -3.03030303 | L54: ='Cálculo humedad'!$L$52 -> 31818.18182 | N54: 30 MPa | O54: 11290.32258 | P54: 21875 | Q54: 31818.18182
E55: 35 MPa | F55: 350-400 kg/cm2 | G55: ='Cálculo humedad'!$J$55 -> -1.541218638 | H55: ='Cálculo humedad'!$L$55 -> 10788.53047 | I55: ='Cálculo humedad'!$J$56 -> -2.986111111 | J55: ='Cálculo humedad'!$L$56 -> 20902.77778 | K55: ='Cálculo humedad'!$J$57 -> -4.343434343 | L55: ='Cálculo humedad'!$L$57 -> 30404.0404 | N55: 35 MPa | O55: 10788.53047 | P55: 20902.77778 | Q55: 30404.0404
E56: Vigueta 350-45 Mpa | F56: 350-450 kg/cm2 | G56: ='Cálculo humedad'!$J$61 -> -1.612903226 | H56: ='Cálculo humedad'!$L$61 -> 11290.32258 | I56: ='Cálculo humedad'!$J$62 -> -3.125 | J56: ='Cálculo humedad'!$L$62 -> 21875 | K56: ='Cálculo humedad'!$J$63 -> -4.545454545 | L56: ='Cálculo humedad'!$L$63 -> 31818.18182 | N56: Vigueta 350-45 Mpa | O56: 11290.32258 | P56: 21875 | Q56: 31818.18182
E57: Durmiente 65 Mpa | F57: 660 kg/cm2 | G57: ='Cálculo humedad'!$J$66 -> 0 | H57: ='Cálculo humedad'!$L$66 -> 0 | I57: ='Cálculo humedad'!$J$67 -> 0 | J57: ='Cálculo humedad'!$L$67 -> 0 | K57: ='Cálculo humedad'!$J$68 -> 0 | L57: ='Cálculo humedad'!$L$68 -> 0 | N57: Durmiente 65 Mpa | O57: 0 | P57: 0 | Q57: 0
F58: Total especificado : | H58: =+SUM(H52:H57) -> 42777.77778 | J58: =+SUM(J52:J57) -> 82881.94444 | L58: =+SUM(L52:L57) -> 120555.5556
F59: =+F45 -> Total producido m3: | H59: =+(H58/$H$70)*$G$45 -> 42777.77778 | J59: =+(J58/$H$70)*$G$45 -> 82881.94444 | L59: =+(L58/$H$70)*$G$45 -> 120555.5556
E61: SU PRODUCCIÓN DE CONCRETO ANUAL : | H61: REPARTICION Y CONSUMO CEMENTO
E62: Resistencia concreto | G62: Producción | H62: Concreto | I62: Cemento
E63: Mpa | F63: kg/cm2* | G63: Entrar % | H63: M3 | I63: Tonelada | M63: Concreto m3 | N63: Cemento t
E64: =+E38 -> Bloque 10-20 MPa | F64: 90-200 kg/cm2 | G64: 0 | H64: ='Cálculo cemento'!G18 -> 0 | I64: ='Cálculo cemento'!I18 -> 0 | L64: =+E64 -> Bloque 10-20 MPa | M64: =+H64 -> 0 | N64: =+I64 -> 0
E65: 25 MPa | F65: 250 kg/cm2 | G65: 0.3 | H65: ='Cálculo cemento'!G19 -> 18000 | I65: ='Cálculo cemento'!I19 -> 4500 | L65: =+E65 -> 25 MPa | M65: =+H65 -> 18000 | N65: =+I65 -> 4500
E66: 30 MPa | F66: 300-320 kg/cm2 | G66: 0.3 | H66: ='Cálculo cemento'!G20 -> 18000 | I66: ='Cálculo cemento'!I20 -> 5400 | L66: 30 MPa | M66: 18000 | N66: 5400
E67: 35 MPa | F67: 350-400 kg/cm2 | G67: 0.2 | H67: ='Cálculo cemento'!G21 -> 12000 | I67: ='Cálculo cemento'!I21 -> 5160 | L67: 35 MPa | M67: 12000 | N67: 5160
E68: Vigueta 350-45 Mpa | F68: 350-450 kg/cm2 | G68: 0.2 | H68: ='Cálculo cemento'!G22 -> 12000 | I68: ='Cálculo cemento'!I22 -> 5400 | L68: Vigueta 350-45 Mpa | M68: 12000 | N68: 5400
E69: Durmiente 65 Mpa | F69: 660 kg/cm2 | G69: 0 | H69: ='Cálculo cemento'!G23 -> 0 | I69: ='Cálculo cemento'!I23 -> 0 | L69: Durmiente 65 Mpa | M69: 0 | N69: 0
F70: =+F44 -> Total detallado % : | G70: =+G44 -> 1 | H70: ='Cálculo cemento'!$G$24 -> 60000 | I70: ='Cálculo cemento'!$I$24 -> 20460
F71: =+F45 -> Total producido m3: | G71: =+G45 -> 60000 | I71: ='Cálculo cemento'!$I$25 -> 20460
E74: SI CAMBIA DE REVOLVEDORA A TWIN-SHAFT : AHORRO DE 9-14 % de CEMENTO : POR AÑO.
E76: Resistencia concreto | G76: Producción anual | H76: Ahorro cemento
E77: Mpa | F77: kg/cm2* | G77: % entrados | H77: ton/año | I77: USD/año | M77: kg | N77: USD
E78: =+E38 -> Bloque 10-20 MPa | F78: 90-200 kg/cm2 | G78: 0 | H78: 0 | I78: 0 | L78: =+E78 -> Bloque 10-20 MPa | M78: =+H78*1000 -> 0 | N78: =+I78 -> 0
E79: 25 MPa | F79: 250 kg/cm2 | G79: 0.3 | H79: 598.5 | I79: 69825 | L79: 25 MPa | M79: =+H79*1000 -> 598500 | N79: =+I79 -> 69825
E80: 30 MPa | F80: 300-320 kg/cm2 | G80: 0.3 | H80: 577.8 | I80: 67410 | L80: 30 MPa | M80: 577800 | N80: 67410
E81: =+E40 -> 30 MPa | F81: =+F40 -> 300-320 kg/cm2 | G81: =+G41 -> 0.2 | H81: 727.56 | I81: 84882 | L81: 30 MPa | M81: 727560 | N81: 84882
E82: =+E42 -> Vigueta 350-45 Mpa | F82: =+F42 -> 350-450 kg/cm2 | G82: =+G42 -> 0.2 | H82: 621 | I82: 72450 | L82: Vigueta 350-45 Mpa | M82: 621000 | N82: 72450
E83: =+E43 -> Durmiente 65 Mpa | F83: =+F43 -> 660 kg/cm2 | G83: =+G43 -> 0 | H83: 0 | I83: 0 | L83: Durmiente 65 Mpa | M83: 0 | N83: 0
F84: =+F44 -> Total detallado % : | G84: =+SUM(G78:G83) -> 1 | H84: ='Cálculo cemento'!G42 -> 2524.86 | I84: =+SUM(I78:I83) -> 294567
F85: =+F45 -> Total producido m3: | G85: =+G45 -> 60000 | H85: =+H84 -> 2524.86 | I85: =+I84 -> 294567
E87: SI CAMBIO DE REVOLVEDORA A RING-PAN : AHORRO DE 20 % CEMENTO : POR AÑO.
E89: Resistencia concreto | G89: Producción anual | H89: Ahorro cemento
E90: Mpa | F90: kg/cm2* | G90: % entrados | H90: ton/año | I90: USD/año | M90: kg | N90: USD
E91: =+E52 -> Bloque 10-20 MPa | F91: =+F64 -> 90-200 kg/cm2 | G91: =+G64 -> 0 | H91: 0 | I91: 0 | L91: =+E91 -> Bloque 10-20 MPa | M91: =+H91*1000 -> 0 | N91: =+I91 -> 0
E92: =+E53 -> 25 MPa | F92: =+F65 -> 250 kg/cm2 | G92: 0.3 | H92: 823.5 | I92: 96075 | L92: 25 MPa | M92: 823500 | N92: 96075
E93: 30 MPa | F93: 300-320 kg/cm2 | G93: 0.3 | H93: 847.8 | I93: 98910 | L93: 30 MPa | M93: 847800 | N93: 98910
E94: 35 MPa | F94: 350-400 kg/cm2 | G94: 0.2 | H94: 985.56 | I94: 114982 | L94: 35 MPa | M94: 985560 | N94: 114982
E95: Vigueta 350-45 Mpa | F95: 350-450 kg/cm2 | G95: 0.2 | H95: 891 | I95: 103950 | L95: Vigueta 350-45 Mpa | M95: 891000 | N95: 103950
E96: Durmiente 65 Mpa | F96: 660 kg/cm2 | G96: 0 | H96: 0 | I96: 0 | L96: Durmiente 65 Mpa | M96: 0 | N96: 0
F97: =+F55 -> 350-400 kg/cm2 | G97: =+SUM(G91:G96) -> 1 | H97: ='Cálculo cemento'!P42 -> 3547.86 | I97: =+SUM(I91:I96) -> 413917
F98: =+F56 -> 350-450 kg/cm2 | G98: =+G71 -> 60000 | H98: =+H97 -> 3547.86 | I98: =+I97 -> 413917
E100: SI CAMBIA DE OLLA A MEZCLADOR LIEBHERR : AHORRO COSTO REVOLVEDORA.
E101: Resistencia concreto | G101: Producción anual | H101: Ahorro tiempo hormigonera
E102: Mpa | F102: kg/cm2 | G102: % entrados | H102: Valor USD/año | L102: Inversión olla | M102: Gazolina
E103: =+E38 -> Bloque 10-20 MPa | F103: 90-200 kg/cm2 | G103: 0 | H103: ='Cálculo cemento'!H48 -> 0 | K103: =+E103 -> Bloque 10-20 MPa | L103: =+H103 -> 0 | M103: =+H115 -> 0
E104: 25 MPa | F104: 250 kg/cm2 | G104: 0.3 | H104: ='Cálculo cemento'!H49 -> 13122 | K104: =+E104 -> 25 MPa | L104: =+H104 -> 13122 | M104: =+H116 -> 1650.6
E105: 30 MPa | F105: 300-320 kg/cm2 | G105: 0.3 | H105: ='Cálculo cemento'!H50 -> 18378 | K105: 30 MPa | L105: 18378 | M105: 2309.4
E106: 35 MPa | F106: 350-400 kg/cm2 | G106: 0.2 | H106: ='Cálculo cemento'!H51 -> 17496 | K106: 35 MPa | L106: 17496 | M106: 2199.6
E107: Vigueta 350-45 Mpa | F107: 350-450 kg/cm2 | G107: 0.2 | H107: ='Cálculo cemento'!H52 -> 22752 | K107: Vigueta 350-45 Mpa | L107: 22752 | M107: 2859.6
E108: Durmiente 65 Mpa | F108: 660 kg/cm2 | G108: 0 | H108: ='Cálculo cemento'!H53 -> 0 | K108: Durmiente 65 Mpa | L108: 0 | M108: 0
F109: =+F44 -> Total detallado % : | G109: =+G44 -> 1 | H109: ='Cálculo cemento'!H54 -> 71748
F110: =+F45 -> Total producido m3: | G110: =+G45 -> 60000 | H110: ='Cálculo cemento'!H55 -> 71748
E112: SI CAMBIA DE OLLA A MEZCLADOR LIEBHERR : AHORRO GAZOLINA.
E113: Resistencia concreto | G113: Producción anual | H113: Ahorro gazolina
E114: Mpa | F114: kg/cm2 | G114: % entrados | H114: Valor USD/año
E115: =+E38 -> Bloque 10-20 MPa | F115: 90-200 kg/cm2 | G115: 0 | H115: ='Cálculo cemento'!H59 -> 0
E116: 25 MPa | F116: 250 kg/cm2 | G116: 0.3 | H116: ='Cálculo cemento'!H60 -> 1650.6
E117: 30 MPa | F117: 300-320 kg/cm2 | G117: 0.3 | H117: ='Cálculo cemento'!H61 -> 2309.4
E118: 35 MPa | F118: 350-400 kg/cm2 | G118: 0.2 | H118: ='Cálculo cemento'!H62 -> 2199.6
E119: Vigueta 350-45 Mpa | F119: 350-450 kg/cm2 | G119: 0.2 | H119: ='Cálculo cemento'!H63 -> 2859.6
E120: Durmiente 65 Mpa | F120: 660 kg/cm2 | G120: 0 | H120: ='Cálculo cemento'!H64 -> 0
F121: =+F44 -> Total detallado % : | G121: =+G44 -> 1 | H121: ='Cálculo cemento'!H65 -> 9019.2
F122: =+F45 -> Total producido m3: | G122: =+G45 -> 60000 | H122: ='Cálculo cemento'!H66 -> 9019.2
E124: SI CAMBIO DE OLLA A TWIN-SHAFT LIEBHERR : AHORRO OLLA+GAZOLINA.
E125: Resistencia concreto | G125: Producción anual | H125: Ahorro gazolina
E126: Mpa | F126: kg/cm2 | G126: % entrados | H126: Valor USD/año
E127: =+E38 -> Bloque 10-20 MPa | F127: 90-200 kg/cm2 | G127: 0 | H127: =+H115+H103 -> 0
E128: 25 MPa | F128: 250 kg/cm2 | G128: 0.3 | H128: =+H116+H104 -> 14772.6
E129: 30 MPa | F129: 300-320 kg/cm2 | G129: 0.3 | H129: 20687.4
E130: 35 MPa | F130: 350-400 kg/cm2 | G130: 0.2 | H130: 19695.6
E131: Vigueta 350-45 Mpa | F131: 350-450 kg/cm2 | G131: 0.2 | H131: 25611.6
E132: Durmiente 65 Mpa | F132: 660 kg/cm2 | G132: 0 | H132: 0
F133: =+F44 -> Total detallado % : | G133: =+G44 -> 1 | H133: 80767.2
F134: =+F45 -> Total producido m3: | G134: =+G45 -> 60000 | H134: 80767.2
E136: SI CAMBIO DE OLLA A MTS : GAZOLINA : EMISION CO2 : Gramos/M3 :
F137: % | G137: m3/año | H137: Kg CO2 emitidos por año | L137: Emisión CO2 kg
E138: =+E38 -> Bloque 10-20 MPa | F138: 90-200 kg/cm2 | G138: 0 | H138: ='Cálculo CO2 directo'!H45 -> 0 | I138: kg/año | K138: =+E138 -> Bloque 10-20 MPa | L138: =+H138 -> 0
E139: 25 MPa | F139: 250 kg/cm2 | G139: 0.3 | H139: ='Cálculo CO2 directo'!H46 -> 3960 | I139: kg/año | K139: =+E139 -> 25 MPa | L139: =+H139 -> 3960
E140: 30 MPa | F140: 300-320 kg/cm2 | G140: 0.3 | H140: ='Cálculo CO2 directo'!H47 -> 5544 | I140: kg/año | K140: 30 MPa | L140: 5544
E141: 35 MPa | F141: 350-400 kg/cm2 | G141: 0.2 | H141: ='Cálculo CO2 directo'!H48 -> 5280 | I141: kg/año | K141: 35 MPa | L141: 5280
E142: Vigueta 350-45 Mpa | F142: 350-450 kg/cm2 | G142: 0.2 | H142: ='Cálculo CO2 directo'!H49 -> 6864 | I142: kg/año | K142: Vigueta 350-45 Mpa | L142: 6864
E143: Durmiente 65 Mpa | F143: 660 kg/cm2 | G143: 0 | H143: ='Cálculo CO2 directo'!H50 -> 0 | I143: kg/año | K143: Durmiente 65 Mpa | L143: 0
F144: =+F44 -> Total detallado % : | G144: =+G44 -> 1 | H144: ='Cálculo CO2 directo'!H51 -> 21648 | I144: kg/año
F145: =+F45 -> Total producido m3: | G145: =+G45 -> 60000 | H145: ='Cálculo CO2 directo'!H52 -> 72160 | I145: kg/año

Sheet Reemplazar Olla por Ring-pan
J5: SOLUCIONES LIEBHERR CON MEZCLADOR RING-PAN : | S5: Si
J6: RING-PAN : | L6: hasta 120 m3/hora, cualquier tipo de concreto. | S6: No
B7: PLANTA DOSIFICADORA + REVOLVEDORA CAMION (OLLA) | J7: Solución n°1 : INSTALAR EL RING-PAN. | O7: Cuestionario técnico
J9: Planta dosificadora antes : | N9: Planta dosificadora después :
H11: AHORRO 15-20 %
H12: CEMENTO
J20: Solución n°2 : | L20: INSTALAR EL MEZCLADOR SOBRE PLATAFORMA.
L21: Cuestionario técnico.
H29: ITISA Tlaxcala, 2021.
J31: CEMEX Aeropuerto Texcoco. | N31: CEMEX Autopista Cd. Obregon
J35: Solución n°3 : PLANTA COMPLETA LIEBHERR. | O35: Precisión 0.5 %.
J36: MOBILMIX 0.5 CON Ring-pan 0.5 | N36: LCM 1.0 con Ring-pan 1.0
J37: 30 m3/hora | N37: 60 m3/hora
H46: HOLCIM Swiza, 2022.

Sheet Reemplazar Olla por TWIN-SHAFT
J5: SOLUCIONES LIEBHERR CON MEZCLADOR :
J6: TWIN-SHAFT : | L6: hasta 190 m3/hora, concreto hasta 45 MPa.
B7: PLANTA DOSIFICADORA + REVOLVEDORA CAMION (OLLA) | J7: Solución n°1 : INSTALAR EL TWIN-SHAFT | O7: Cuestionario técnico
J9: Planta dosificadora antes : | N9: Planta dosificadora después :
H11: AHORRO 8-13 %
H12: CEMENTO
J20: Solución n°2 : | L20: INSTALAR EL MEZCLADOR SOBRE PLATAFORMA.
L21: Cuestionario técnico.
J31: CEMEX Aeropuerto Texcoco. | N31: CEMEX Autopista Cd. Obregon
J32: Solución n°3 : | L32: MOBILE TWIN-SHAFT 4.5 MTS
J33: MEZCLADOR Y INGENIERIA LIEBHERR.
J41: Autopista Monterrey a Laredo; Magnamaq. | N41: Autopista Cd. Obregon a Hermosillo.
J42: Solución n°4 : PLANTA COMPLETA LIEBHERR. | O42: Precisión 0.5 %.
J43: LCM 3 con TWIN-SHAFT 3.0 | N43: Betomix Twin-shaft 2.5
J44: 150 m3/hora
J54: Solución n°5 : FABRICAR UNA PLANTA EN MEXICO CON
J55: MEZCLADOR Y INGENIERIA LIEBHERR.
J57: HOLCIM : Twin-shaft 4.5

Sheet Reemplazar Tilt por Twin-shaft
B7: PLANTA DOSIFICADORA + REVOLVEDORA TILT | L7: SOLUCIONES LIEBHERR CON MEZCLADOR :
L8: TWIN-SHAT; hasta 190 m3/hora.
L9: SOLUCION N°1 : INSTALAR UN TWIN-SHAFT.
O10: Cuestionario técnico
H12: AHORRO DE 8-13 % CEMENTO
P16: Revolvedora Tilt
L24: Solución n°2 : | N24: MOBILE TWIN-SHAFT 4.5 MTS
L25: MEZCLADOR Y INGENIERIA LIEBHERR.
L34: Autopista Monterrey a Laredo; Magnamaq. | P34: Autopista Cd. Obregon a Hermosillo.
I57: 0
H58: 593.25 | I58: 77122.5
H59: 548.1 | I59: 71253
H60: 592.9 | I60: 77077
H61: 598.5 | I61: 77805
H62: 0 | I62: 0
H70: 0 | I70: 0
H71: 945 | I71: 122850
H72: 1134 | I72: 147420
H73: 882 | I73: 114660
H74: 1134 | I74: 147420
H75: 0 | I75: 0

Sheet Factor CO2 (hidden)
C5: Producción anual : | D5: ='Ring-pan y Huella CO2'!$G$45 -> 60000
C7: Nombre | D7: SISTEMA AMASADO | E7: ENERGIA | F7: TRANSPORTE | G7: ENERGIA | H7: ENERGIA | I7: AMASADO | L7: TRANSPORTE | O7: TOTAL
E8: UTILIZASA | G8: UTILIZADA | H8: UTILIZADA | I8: CEMENTO | J8: ENERGIA | K8: TOTAL | L8: PARADAS | M8: ACTIVO | N8: TOTAL
E9: AMASADO | G9: PARADAS | H9: TRANSPORTE ACTIVO
C10: Rev. Diesel | D10: Revolvedora normal | E10: Diesel chasis | F10: Revolvedora+diesel | G10: Diesel | H10: Diesel | I10: ='Cálculo cemento'!$N$25 -> 212.102 | J10: 0.308 | K10: =+I10+J10 -> 212.41 | L10: 0.66 | M10: 3.3 | N10: =+L10+M10 -> 3.96 | O10: =+N10+K10 -> 216.37
C11: Rev. Gas | D11: Revolvedora normal | E11: Gas chasis | F11: Revolvedora+gas | G11: Gas | H11: Gas | I11: =+I10 -> 212.102 | J11: 0.246 | K11: =+I11+J11 -> 212.348 | L11: 0.528 | M11: 2.64 | N11: =+L11+M11 -> 3.168 | O11: =+N11+K11 -> 215.516
C12: Rev Elec Diesel | D12: Revolvedora eléctrica Plug-in | E12: Electricidad CFE | F12: Revolvedora elec.+diesel | G12: Electricidad CFE | H12: Diesel | I12: =+I10 -> 212.102 | J12: 0.202 | K12: 212.304 | L12: 0.432 | M12: =+M10 -> 3.3 | N12: 3.732 | O12: 216.036
C13: Rev Elec Gas | D13: Revolvedora eléctrica Plug-in | E13: Electricidad CFE | F13: Revolvedora elec.+gas | G13: Electricidad CFE | H13: Gas | I13: =+I10 -> 212.102 | J13: 0.202 | K13: 212.304 | L13: =+L12 -> 0.432 | M13: =+M11 -> 2.64 | N13: 3.072 | O13: 215.376
C14: Tilt Diesel | D14: Revolvedora Tilt | E14: Electricidad CFE | F14: Revolvedora+diesel | G14: Diesel | H14: Diesel | I14: ='Cálculo cemento'!$O$25 -> 207.85996 | J14: 0.686 | K14: =+I14+J14 -> 208.54596 | L14: =+L10 -> 0.66 | M14: 3.3 | N14: =+L14+M14 -> 3.96 | O14: =+N14+K14 -> 212.50596
C15: Tilt Gas | D15: Revolvedora Tilt | E15: Electricidad CFE | F15: Revolvedora+gas | G15: Gas | H15: Gas | I15: =+I14 -> 207.85996 | J15: =+J14 -> 0.686 | K15: 208.54596 | L15: 0.528 | M15: 2.64 | N15: 3.168 | O15: 211.71396
C16: Tilt Rev Elec Diesel | D16: Revolvedora Tilt | E16: Electricidad CFE | F16: Revolvedora elec.+diesel | G16: Electricidad CFE | H16: Diesel | I16: =+I14 -> 207.85996 | J16: =+J14 -> 0.686 | K16: 208.54596 | L16: 0.432 | M16: 3.3 | N16: 3.732 | O16: 212.27796
C17: Tilt Rev Elec Gas | D17: Revolvedora Tilt | E17: Electricidad CFE | F17: Revolvedora elec.+gas | G17: Electricidad CFE | H17: Gas | I17: =+I14 -> 207.85996 | J17: =+J14 -> 0.686 | K17: 208.54596 | L17: 0.432 | M17: 2.64 | N17: 3.072 | O17: 211.61796
C18: Twin-shaft Diesel | D18: Mezclador Twin-shaft LIEBHERR | E18: Electricidad CFE | F18: Revolvedora+diesel | G18: Diesel | H18: Diesel | I18: ='Cálculo cemento'!$Q$25 -> 185.927618 | J18: 0.246 | K18: 186.173618 | L18: =+L10 -> 0.66 | M18: =+M10 -> 3.3 | N18: 3.96 | O18: 190.133618
C19: Twin-shaft Gas | D19: Mezclador Twin-shaft LIEBHERR | E19: Electricidad CFE | F19: Revolvedora+gas | G19: Gas | H19: Gas | I19: =+I18 -> 185.927618 | J19: =+J18 -> 0.246 | K19: 186.173618 | L19: =+L11 -> 0.528 | M19: 2.64 | N19: 3.168 | O19: 189.341618
C20: Twin-shaft Rev Elec Diesel | D20: Mezclador Twin-shaft LIEBHERR | E20: Electricidad CFE | F20: Revolvedora elec.+diesel | G20: Electricidad CFE | H20: Diesel | I20: =+I18 -> 185.927618 | J20: =+J18 -> 0.246 | K20: 186.173618 | L20: =+L12 -> 0.432 | M20: 3.3 | N20: 3.732 | O20: 189.905618
C21: Twin-shaft Rev Elec Gas | D21: Mezclador Twin-shaft LIEBHERR | E21: Electricidad CFE | F21: Revolvedora elec.+gas | G21: Electricidad CFE | H21: Gas | I21: =+I18 -> 185.927618 | J21: =+J18 -> 0.246 | K21: 186.173618 | L21: =+L13 -> 0.432 | M21: 2.64 | N21: 3.072 | O21: 189.245618
C22: Ring-pan Diesel | D22: Mezclador Ring-pan LIEBHERR | E22: Electricidad CFE | F22: Revolvedora+diesel | G22: Diesel | H22: Diesel | I22: ='Cálculo cemento'!$S$25 -> 175.322518 | J22: 0.344 | K22: 175.666518 | L22: =+L10 -> 0.66 | M22: =+M10 -> 3.3 | N22: 3.96 | O22: 179.626518
C23: Ring-pan Gas | D23: Mezclador Ring-pan LIEBHERR | E23: Electricidad CFE | F23: Revolvedora+gas | G23: Gas | H23: Gas | I23: =+I22 -> 175.322518 | J23: =+J22 -> 0.344 | K23: 175.666518 | L23: =+L11 -> 0.528 | M23: 2.64 | N23: 3.168 | O23: 178.834518
C24: Ring-pan Rev Elec Diesel | D24: Mezclador Ring-pan LIEBHERR | E24: Electricidad CFE | F24: Revolvedora elec.+diesel | G24: Electricidad CFE | H24: Diesel | I24: =+I22 -> 175.322518 | J24: =+J22 -> 0.344 | K24: 175.666518 | L24: =+L12 -> 0.432 | M24: 3.3 | N24: 3.732 | O24: 179.398518
C25: Ring-pan Rev Elec Gas | D25: Mezclador Ring-pan LIEBHERR | E25: Electricidad CFE | F25: Revolvedora elec.+gas | G25: Electricidad CFE | H25: Gas | I25: =+I22 -> 175.322518 | J25: =+J22 -> 0.344 | K25: 175.666518 | L25: =+L13 -> 0.432 | M25: 2.64 | N25: 3.072 | O25: 178.738518
I27: HUELLA CO2 EN KG PARA LA PRODUCCION ANUAL
C28: =+C10 -> Rev. Diesel | I28: =+I10*$D$5 -> 12726120 | J28: =+J10*$D$5 -> 18480 | K28: 12744600 | L28: 39600 | M28: 198000 | N28: 237600 | O28: 12982200
C29: =+C11 -> Rev. Gas | I29: =+I11*$D$5 -> 12726120 | J29: 14760 | K29: 12740880 | L29: 31680 | M29: 158400 | N29: 190080 | O29: 12930960
C30: =+C12 -> Rev Elec Diesel | I30: =+I12*$D$5 -> 12726120 | J30: 12120 | K30: 12738240 | L30: 25920 | M30: 198000 | N30: 223920 | O30: 12962160
C31: =+C13 -> Rev Elec Gas | I31: =+I13*$D$5 -> 12726120 | J31: 12120 | K31: 12738240 | L31: 25920 | M31: 158400 | N31: 184320 | O31: 12922560
C32: =+C14 -> Tilt Diesel | I32: =+I14*$D$5 -> 12471597.6 | J32: 41160 | K32: 12512757.6 | L32: 39600 | M32: 198000 | N32: 237600 | O32: 12750357.6
C33: Tilt Gas | I33: =+I15*$D$5 -> 12471597.6 | J33: 41160 | K33: 12512757.6 | L33: 31680 | M33: 158400 | N33: 190080 | O33: 12702837.6
C34: Tilt Rev Elec Diesel | I34: =+I16*$D$5 -> 12471597.6 | J34: 41160 | K34: 12512757.6 | L34: 25920 | M34: 198000 | N34: 223920 | O34: 12736677.6
C35: Tilt Rev Elec Gas | I35: =+I17*$D$5 -> 12471597.6 | J35: 41160 | K35: 12512757.6 | L35: 25920 | M35: 158400 | N35: 184320 | O35: 12697077.6
C36: =+C18 -> Twin-shaft Diesel | I36: =+I18*$D$5 -> 11155657.08 | J36: 14760 | K36: 11170417.08 | L36: 39600 | M36: 198000 | N36: 237600 | O36: 11408017.08
C37: Twin-shaft Gas | I37: =+I19*$D$5 -> 11155657.08 | J37: 14760 | K37: 11170417.08 | L37: 31680 | M37: 158400 | N37: 190080 | O37: 11360497.08
C38: Twin-shaft Rev Elec Diesel | I38: =+I20*$D$5 -> 11155657.08 | J38: 14760 | K38: 11170417.08 | L38: 25920 | M38: 198000 | N38: 223920 | O38: 11394337.08
C39: Twin-shaft Rev Elec Gas | I39: =+I21*$D$5 -> 11155657.08 | J39: 14760 | K39: 11170417.08 | L39: 25920 | M39: 158400 | N39: 184320 | O39: 11354737.08
C40: Ring-pan Diesel | I40: =+I22*$D$5 -> 10519351.08 | J40: 20640 | K40: 10539991.08 | L40: 39600 | M40: 198000 | N40: 237600 | O40: 10777591.08
C41: Ring-pan Gas | I41: =+I23*$D$5 -> 10519351.08 | J41: 20640 | K41: 10539991.08 | L41: 31680 | M41: 158400 | N41: 190080 | O41: 10730071.08
C42: Ring-pan Rev Elec Diesel | I42: =+I24*$D$5 -> 10519351.08 | J42: 20640 | K42: 10539991.08 | L42: 25920 | M42: 198000 | N42: 223920 | O42: 10763911.08
C43: Ring-pan Rev Elec Gas | I43: =+I25*$D$5 -> 10519351.08 | J43: 20640 | K43: 10539991.08 | L43: 25920 | M43: 158400 | N43: 184320 | O43: 10724311.08
I45: HUELLA CO2 EN TONELADA PARA LA PRODUCCIION ANUAL
C46: =+C10 -> Rev. Diesel | I46: =+(I10*$D$5)/1000 -> 12726.12 | J46: =+(J10*$D$5)/1000 -> 18.48 | K46: 12744.6 | L46: 39.6 | M46: 198 | N46: 237.6 | O46: 12982.2
C47: =+C11 -> Rev. Gas | I47: =+(I11*$D$5)/1000 -> 12726.12 | J47: 14.76 | K47: 12740.88 | L47: 31.68 | M47: 158.4 | N47: 190.08 | O47: 12930.96
C48: =+C12 -> Rev Elec Diesel | I48: =+(I12*$D$5)/1000 -> 12726.12 | J48: 12.12 | K48: 12738.24 | L48: 25.92 | M48: 198 | N48: 223.92 | O48: 12962.16
C49: =+C13 -> Rev Elec Gas | I49: =+(I13*$D$5)/1000 -> 12726.12 | J49: 12.12 | K49: 12738.24 | L49: 25.92 | M49: 158.4 | N49: 184.32 | O49: 12922.56
C50: =+C14 -> Tilt Diesel | I50: =+(I14*$D$5)/1000 -> 12471.5976 | J50: 41.16 | K50: 12512.7576 | L50: 39.6 | M50: 198 | N50: 237.6 | O50: 12750.3576
C51: Tilt Gas | I51: =+(I15*$D$5)/1000 -> 12471.5976 | J51: 41.16 | K51: 12512.7576 | L51: 31.68 | M51: 158.4 | N51: 190.08 | O51: 12702.8376
C52: Tilt Rev Elec Diesel | I52: =+(I16*$D$5)/1000 -> 12471.5976 | J52: 41.16 | K52: 12512.7576 | L52: 25.92 | M52: 198 | N52: 223.92 | O52: 12736.6776
C53: Tilt Rev Elec Gas | I53: =+(I17*$D$5)/1000 -> 12471.5976 | J53: 41.16 | K53: 12512.7576 | L53: 25.92 | M53: 158.4 | N53: 184.32 | O53: 12697.0776
C54: =+C18 -> Twin-shaft Diesel | I54: =+(I18*$D$5)/1000 -> 11155.65708 | J54: 14.76 | K54: 11170.41708 | L54: 39.6 | M54: 198 | N54: 237.6 | O54: 11408.01708
C55: Twin-shaft Gas | I55: =+(I19*$D$5)/1000 -> 11155.65708 | J55: 14.76 | K55: 11170.41708 | L55: 31.68 | M55: 158.4 | N55: 190.08 | O55: 11360.49708
C56: Twin-shaft Rev Elec Diesel | I56: =+(I20*$D$5)/1000 -> 11155.65708 | J56: 14.76 | K56: 11170.41708 | L56: 25.92 | M56: 198 | N56: 223.92 | O56: 11394.33708
C57: Twin-shaft Rev Elec Gas | I57: =+(I21*$D$5)/1000 -> 11155.65708 | J57: 14.76 | K57: 11170.41708 | L57: 25.92 | M57: 158.4 | N57: 184.32 | O57: 11354.73708
C58: Ring-pan Diesel | I58: =+(I22*$D$5)/1000 -> 10519.35108 | J58: 20.64 | K58: 10539.99108 | L58: 39.6 | M58: 198 | N58: 237.6 | O58: 10777.59108
C59: Ring-pan Gas | I59: =+(I23*$D$5)/1000 -> 10519.35108 | J59: 20.64 | K59: 10539.99108 | L59: 31.68 | M59: 158.4 | N59: 190.08 | O59: 10730.07108
C60: Ring-pan Rev Elec Diesel | I60: =+(I24*$D$5)/1000 -> 10519.35108 | J60: 20.64 | K60: 10539.99108 | L60: 25.92 | M60: 198 | N60: 223.92 | O60: 10763.91108
C61: Ring-pan Rev Elec Gas | I61: =+(I25*$D$5)/1000 -> 10519.35108 | J61: 20.64 | K61: 10539.99108 | L61: 25.92 | M61: 158.4 | N61: 184.32 | O61: 10724.31108

Sheet Cálculo cemento (hidden)
E3: Costo cemento : | G3: ='Ring-pan y Huella CO2'!$H$1 -> 2.1 | H3: Pesos/kg | I3: =+G3/G4 -> 0.1166666667 | J3: USD
E4: 1 USD = | G4: ='Ring-pan y Huella CO2'!$H$2 -> 18 | H4: Pesos
F7: ='Ring-pan y Huella CO2'!#REF! -> 
F8: ='Ring-pan y Huella CO2'!F10 -> 25 MPa | G8: ='Ring-pan y Huella CO2'!G10 -> 0.3
F9: ='Ring-pan y Huella CO2'!F12 -> 35 MPa | G9: ='Ring-pan y Huella CO2'!G11 -> 0.3
F10: ='Ring-pan y Huella CO2'!#REF! -> 
F11: ='Ring-pan y Huella CO2'!B4 -> EQUIPO FRANCES SA DE CV, Colima, 21 Jun. 2020, versión Sep. 22 2022.
E15: SU PRODUCCIÓN DE CONCRETO ANUAL : | K15: Estimación mercado | L15: Bajada huella | M15: Huella final
F16: % | G16: m3/año | H16: Cemento consumido con Olla* : | K16: ='Ring-pan y Huella CO2'!$L$13 -> 622 | L16: ='Ring-pan y Huella CO2'!$L$14 -> 0 | M16: =+K16*(1-L16) -> 622 | O16: Tilt | P16: Twin-shaft | R16: Ring-pan | T16: Sistema FMS 3 % : | X16: Ahorro entre Olla y Planetario o Twin-shaft :
H17: kg/m3 | I17: t/año | K17: kg CO2 | L17: kg CO2/m3 | P17: kg CO2 | Q17: Kg CO2/m3 | R17: kg CO2 | S17: Kg CO2/m3 | T17: kg cemento/m3 | U17: kg cemento | V17: kg CO2 | W17: USD | X17: 15 Mpa* | Y17: 20 | Z17: =+Y17/AA17 ->  | AA17: ='Ring-pan y Huella CO2'!#REF! ->  | AB17: 0.1333333333
D18: Bloque n°1 Sólido 5MPa | E18: 40-50 kg/cm2 | F18: ='Ring-pan y Huella CO2'!G38 -> 0 | G18: =+F18*$F$25 -> 0 | H18: ='Ring-pan y Huella CO2'!I38 -> 0 | I18: =+G18*H18/1000 -> 0 | K18: =+I18*$K$16 -> 0 | L18: =+K18/G18 ->  | M18: =+I18*$M$16 -> 0 | N18: =+M18/G18 ->  | O18: =+N18*(1-K36) ->  | P18: =+I18*(1-J36)*$M$16 -> 0 | Q18: =+P18/G18 ->  | R18: =+I18*(1-O36)*$M$16 -> 0 | T18: ='[1]Cálculo humedad'!$K$41 -> 0 | U18: =+T18*G18 -> 0 | V18: =+(U18*$M$16)/1000 -> 0 | W18: =+U18*$I$3 -> 0 | X18: 25 MPa | Y18: 26.7875 | Z18: =+Y18/AA18 -> 0.10715 | AA18: 250 | AB18: 0.10715
D19: ='Ring-pan y Huella CO2'!$E$39 -> 25 MPa | E19: 90 kg/cm2 | F19: ='Ring-pan y Huella CO2'!G39 -> 0.3 | G19: 18000 | H19: ='Ring-pan y Huella CO2'!I39 -> 250 | I19: =+G19*H19/1000 -> 4500 | K19: =+I19*$K$16 -> 2799000 | L19: =+K19/G19 -> 155.5 | M19: =+I19*$M$16 -> 2799000 | N19: =+M19/G19 -> 155.5 | O19: =+N19*(1-K37) -> 152.39 | P19: =+I19*(1-J37)*$M$16 -> 2426733 | Q19: =+P19/G19 -> 134.8185 | R19: =+I19*(1-O37)*$M$16 -> 2286783 | T19: ='[1]Cálculo humedad'!$K$46 -> 0 | U19: =+T19*G19 -> 0 | V19: =+(U19*$M$16)/1000 -> 0 | W19: =+U19*$I$3 -> 0 | X19: 30 MPa | Y19: 26.65 | Z19: =+Y19/AA19 -> 0.08883333333 | AA19: 300 | AB19: 0.08883333333
D20: Prefabricado 35 MPa | E20: 357 kg/cm2 | F20: ='Ring-pan y Huella CO2'!G40 -> 0.3 | G20: 18000 | H20: ='Ring-pan y Huella CO2'!I40 -> 300 | I20: 5400 | K20: 3358800 | L20: 186.6 | M20: 3358800 | N20: 186.6 | O20: 182.868 | P20: 2999408.4 | Q20: 166.6338 | R20: 2831468.4 | T20: ='[1]Cálculo humedad'!$K$52 -> 10.59050064 | U20: 190629.0116 | V20: 118571.2452 | W20: 22240.05135 | X20: 35 MPa | Y20: 49.4 | Z20: 0.1411428571 | AA20: 350 | AB20: 0.1411428571
D21: Prefabricado 35 MPa | E21: 357 kg/cm2 | F21: ='Ring-pan y Huella CO2'!G41 -> 0.2 | G21: 12000 | H21: ='Ring-pan y Huella CO2'!$I$41 -> 430 | I21: =+G21*H21/1000 -> 5160 | K21: 3209520 | L21: 267.46 | M21: 3209520 | N21: 267.46 | O21: 262.1108 | P21: 2756977.68 | Q21: 229.74814 | R21: 2596501.68 | T21: ='[1]Cálculo humedad'!$K$57 -> 13.98648649 | U21: 167837.8378 | V21: 104395.1351 | W21: 19581.08108
D22: Vigueta 45 Mpa | E22: 455 kg/cm2 | F22: ='Ring-pan y Huella CO2'!G42 -> 0.2 | G22: 12000 | H22: ='Ring-pan y Huella CO2'!$I$42 -> 450 | I22: 5400 | K22: 3358800 | L22: 279.9 | M22: 3358800 | N22: 279.9 | O22: 274.302 | P22: 2972538 | Q22: 247.7115 | R22: 2804598 | T22: ='[1]Cálculo humedad'!$K$63 -> 0 | U22: 0 | V22: 0 | W22: 0 | X22: 50 MPa | Y22: 51.8 | Z22: 0.1151111111 | AA22: 450 | AB22: 0.1151111111
D23: Durmiento 65 Mpa | E23: 663 kg/cm2 | F23: ='Ring-pan y Huella CO2'!$G$43 -> 0 | G23: 0 | H23: ='Ring-pan y Huella CO2'!$I$43 -> 0 | I23: 0 | K23: 0 | M23: 0 | P23: 0 | R23: 0 | T23: ='[1]Cálculo humedad'!$K$68 -> 0 | U23: 0 | V23: 0 | W23: 0 | X23: 65 MPa | Y23: =+AA23*Z23 -> 65.55 | Z23: 0.115 | AA23: 570 | AB23: 0.1151111111
E24: ='Ring-pan y Huella CO2'!F44 -> Total detallado % : | F24: =+SUM(F18:F23) -> 1 | G24: =+SUM(G18:G23) -> 60000 | H24: =IFERROR(+SUM(I18:I23)*1000/G24,0) -> 341 | I24: =+SUM(I18:I23) -> 20460 | K24: 12726120 | L24: 212.102 | M24: 12726120 | N24: 212.102 | O24: 207.85996
E25: ='Ring-pan y Huella CO2'!F45 -> Total producido m3: | F25: ='Ring-pan y Huella CO2'!$G$45 -> 60000 | I25: =+(F25*H24)/1000 -> 20460 | K25: 12726120 | L25: =+K25/F25 -> 212.102 | M25: 12726120 | N25: =+M25/F25 -> 212.102 | O25: 207.85996 | P25: =+SUM(P18:P23) -> 11155657.08 | Q25: =+P25/F25 -> 185.927618 | R25: =+SUM(R18:R23) -> 10519351.08 | S25: =+R25/F25 -> 175.322518 | W25: =+SUM(W18:W23) -> 41821.13243
S26: =+(Q25-S25)/Q25 -> 0.05703886337 | U26: =+SUM(U18:U23) -> 358466.8494 | V26: =+SUM(V18:V23) -> 222966.3803 | W26: =+U26*I3 -> 41821.13243
E30: SI CAMBIO DE OLLA A MEZCLADOR : AHORRO DE 9-14% de CEMENTO :
F33: % | G33: TWIN-SHAFT con Olla | I33: Tilt | J33: Twin-shaft | K33: TILT vs Olla | M33: DW versus Tilt | O33: Ring-pan | P33: Ring-pan versus Olla | R33: Ring-pan vs Tilt
G34: t cemento | H34: Valor USD | J34: vs Olla | K34: % ahorro | L34: t cemento | M34: t | N34: USD | O34: Ahorros | P34: cemento
P35: toneladas | Q35: USD | R35: t | S35: USD
D36: ='Ring-pan y Huella CO2'!E38 -> Bloque 10-20 MPa | E36: ='Ring-pan y Huella CO2'!F38 -> 90-200 kg/cm2 | F36: =+F18 -> 0 | G36: =+I18*J36 -> 0 | H36: =+G36*$I$3*1000 -> 0 | I36: =+I18*(K36)*$I$3*1000 -> 0 | J36: 0.133 | K36: 0.02 | L36: =+K36*I18 -> 0 | M36: =+G36-L36 -> 0 | N36: =+H36-I36 -> 0 | O36: =+J36+0.05 -> 0.183 | P36: =+O36*I18 -> 0 | Q36: =+P36*$I$3*1000 -> 0 | R36: =+P36-L36 -> 0 | S36: =+Q36-I36 -> 0
D37: ='Ring-pan y Huella CO2'!E39 -> 25 MPa | E37: ='Ring-pan y Huella CO2'!F39 -> 250 kg/cm2 | F37: 0.3 | G37: 598.5 | H37: =+G37*$I$3*1000 -> 69825 | I37: =+I19*(K37)*$I$3*1000 -> 10500 | J37: 0.133 | K37: 0.02 | L37: =+K37*I19 -> 90 | M37: =+G37-L37 -> 508.5 | N37: =+H37-I37 -> 59325 | O37: =+J37+0.05 -> 0.183 | P37: 823.5 | Q37: =+P37*$I$3*1000 -> 96075 | R37: =+P37-L37 -> 733.5 | S37: =+Q37-I37 -> 85575
D38: ='Ring-pan y Huella CO2'!E40 -> 30 MPa | E38: ='Ring-pan y Huella CO2'!F40 -> 300-320 kg/cm2 | F38: 0.3 | G38: 577.8 | H38: 67410 | I38: 12600 | J38: 0.107 | K38: 0.02 | L38: 108 | M38: 469.8 | N38: 54810 | O38: 0.157 | P38: 847.8 | Q38: 98910 | R38: 739.8 | S38: 86310
D39: ='Ring-pan y Huella CO2'!E41 -> 35 MPa | E39: ='Ring-pan y Huella CO2'!F41 -> 350-400 kg/cm2 | F39: 0.2 | G39: 727.56 | H39: 84882 | I39: 12040 | J39: 0.141 | K39: 0.02 | L39: 103.2 | M39: 624.36 | N39: 72842 | O39: 0.191 | P39: 985.56 | Q39: 114982 | R39: 882.36 | S39: 102942
D40: ='Ring-pan y Huella CO2'!E42 -> Vigueta 350-45 Mpa | E40: ='Ring-pan y Huella CO2'!F42 -> 350-450 kg/cm2 | F40: 0.2 | G40: 621 | H40: 72450 | I40: 12600 | J40: 0.115 | K40: 0.02 | L40: 108 | M40: 513 | N40: 59850 | O40: 0.165 | P40: 891 | Q40: 103950 | R40: 783 | S40: 91350
D41: ='Ring-pan y Huella CO2'!E43 -> Durmiente 65 Mpa | E41: ='Ring-pan y Huella CO2'!F43 -> 660 kg/cm2 | F41: 0 | G41: 0 | H41: 0 | I41: 0 | J41: 0.115 | K41: 0.02 | L41: 0 | M41: 0 | N41: 0 | O41: 0.165 | P41: 0 | Q41: 0 | R41: 0 | S41: 0
E42: =+E24 -> Total detallado % : | F42: =+SUM(F36:F41) -> 1 | G42: =+SUM(G36:G41) -> 2524.86 | H42: =+SUM(H36:H41) -> 294567 | I42: =+SUM(I36:I41) -> 47740 | K42: 0.02 | L42: =+SUM(L36:L41) -> 409.2 | M42: =+SUM(M36:M41) -> 2115.66 | N42: 246827 | P42: =+SUM(P36:P41) -> 3547.86 | Q42: 413917 | S42: 366177
E43: =+E25 -> Total producido m3: | F43: =+F25 -> 60000 | G43: =+(G42/G24)*F25 -> 2524.86 | H43: =+G43*I3*1000 -> 294567 | I43: =+(I42/G24)*F43 -> 47740 | K43: 0.02 | L43: A calculer | Q43: A calculer
E46: SI CAMBIO DE OLLA A MTS : AHORRO DE OLLA : TIEMPO PARA MEZCLAR. | M46: Twin-shaft versus Planetario | O46: Ring-pan | P46: Ring-pan versus Planetario
F47: % | G47: USD/1000m3 | H47: Valor USD/año | M47: t | N47: USD | O47: Ahorros | P47: cemento
E48: =+E36 -> 90-200 kg/cm2 | F48: =+F36 -> 0 | G48: =+G49 -> 729 | H48: =+G48*G18/1000 -> 0 | P48: toneladas | Q48: USD
E49: =+E37 -> 250 kg/cm2 | F49: 0.3 | G49: 729 | H49: 13122 | M49: =+G49-L49 -> 729 | N49: =+H49-I49 -> 13122 | O49: =+J49+0.05 -> 0.05 | P49: =+O49*I31 -> 0 | Q49: =+P49*$I$3*1000 -> 0
E50: =+E38 -> 300-320 kg/cm2 | F50: 0.3 | G50: 1021 | H50: 18378 | M50: =+G50-L50 -> 1021 | N50: =+H50-I50 -> 18378 | O50: =+J50+0.05 -> 0.05 | P50: 0 | Q50: =+P50*$I$3*1000 -> 0
E51: =+E39 -> 350-400 kg/cm2 | F51: 0.2 | G51: 1458 | H51: 17496 | M51: 1458 | N51: 17496 | O51: 0.05
E52: =+E40 -> 350-450 kg/cm2 | F52: 0.2 | G52: 1896 | H52: 22752 | M52: 1896 | N52: 22752 | O52: 0.05 | P52: 0 | Q52: 0
E53: =+E41 -> 660 kg/cm2 | F53: 0 | G53: 2188 | H53: 0 | M53: 2188 | N53: 0 | O53: 0.05 | P53: 0 | Q53: 0
E54: =+E24 -> Total detallado % : | F54: =+F24 -> 1 | H54: =+SUM(H48:H53) -> 71748 | N54: 71748 | O54: 0.05 | P54: 0 | Q54: 0
E55: =+E25 -> Total producido m3: | F55: =+F25 -> 60000 | G55: =+F25 -> 60000 | H55: =+(H54/G24)*G55 -> 71748 | M55: =+SUM(M49:M54) ->  | N55: 143496 | P55: =+SUM(P49:P54) -> 
Q56: A calculer
E57: SI CAMBIO DE OLLA A MTS : AHORRO GAZOLINA : | M57: Planetario ahorra : | N57: 0.02 | P57: Planetario ahorra : | Q57: 0.06
F58: % | G58: USD/1000m3 | H58: Valor USD/año
E59: =+E36 -> 90-200 kg/cm2 | F59: =+F36 -> 0 | G59: =+G60 -> 91.7 | H59: =+G18*G59/1000 -> 0
E60: =+E37 -> 250 kg/cm2 | F60: 0.3 | G60: 91.7 | H60: 1650.6
E61: =+E38 -> 300-320 kg/cm2 | F61: 0.3 | G61: 128.3 | H61: 2309.4
E62: =+E39 -> 350-400 kg/cm2 | F62: 0.2 | G62: 183.3 | H62: 2199.6
E63: =+E40 -> 350-450 kg/cm2 | F63: 0.2 | G63: 238.3 | H63: 2859.6
E64: =+E41 -> 660 kg/cm2 | F64: 0 | G64: 275 | H64: 0
E65: =+E24 -> Total detallado % : | F65: =+F24 -> 1 | H65: =+SUM(H59:H64) -> 9019.2
E66: =+E25 -> Total producido m3: | F66: =+F25 -> 60000 | G66: =+F37 -> 0.3 | H66: =+(H65/G24)*F66 -> 9019.2

Sheet Cálculo humedad (hidden)
E3: Costo cemento : | J3: ='Ring-pan y Huella CO2'!$H$1 -> 2.1 | M3: Pesos/kg | N3: =+J3/J4 -> 0.1166666667 | O3: USD/kg
E4: 1 USD = | J4: ='Ring-pan y Huella CO2'!$H$2 -> 18 | M4: Pesos
F7: MEZCLADO CENTRAL : PARTE N°4 : Ahorros y soluciones LIEBHERR.
F8: 4.1. P4 : 1. Cálculo ahorros en cemento si utiliza un mezclador Ring-pan
F9: 2. Cáculco ahorro cemento si utiliza una Sonda de humedad LIEBHERR FMS.
F10: Perfil : bloque, pretensado y prefabricado volumen entre 5,000 m3/año y 50,000 m3/año.
E11: ='Ring-pan y Huella CO2'!$B$4 -> EQUIPO FRANCES SA DE CV, Colima, 21 Jun. 2020, versión Sep. 22 2022.
E13: Fórmula de Bolomey :
E14: Rb28 = G x Rc x (C/A – 0,5)
E15: Coeficiente agregado G= | H15: 0.5
E16: Clase resistencia cemento Rc = | H16: 40
E17: Consumo cemento por 1 MPa = | H17: 5 | I17: kg
S19: 42 | T19: GxRc= | U19: =+H15*S19 -> 21
E20: Producción estimada total : | H20: ='Ring-pan y Huella CO2'!$G$45 -> 60000
E21: Humedad mínima : | H21: ='Ring-pan y Huella CO2'!K44 -> 0.01
E22: Humedad maxima : | H22: ='Ring-pan y Huella CO2'!K45 -> 0.05
E23: Variación humedad : | H23: =+H22-H21 -> 0.04
H26: Agua | I26: Cemento | J26: Agua/Cemento | K26: Rb28 teórica | L26: Agregado húmedo | M26: Producción
E27: Bloque n°1 Sólido 5 MPa | H27: ='Ring-pan y Huella CO2'!H38 -> 0 | I27: ='Ring-pan y Huella CO2'!I38 -> 0 | J27: =IFERROR(+H27/I27,0) -> 0 | K27: =IFERROR(+$H$15*$H$16*((1/J27)-0.5),0) -> 0 | L27: ='Ring-pan y Huella CO2'!J38 -> 0 | M27: ='Cálculo cemento'!$G$18 -> 0
E28: Boque n°2 Hueco 10-15 MPa | H28: ='Ring-pan y Huella CO2'!H39 -> 180 | I28: ='Ring-pan y Huella CO2'!I39 -> 250 | J28: =IFERROR(+H28/I28,0) -> 0.72 | K28: =IFERROR(+$H$15*$H$16*((1/J28)-0.5),0) -> 17.77777778 | L28: ='Ring-pan y Huella CO2'!J39 -> 600 | M28: ='Cálculo cemento'!$G$19 -> 18000
E29: Total estimado Bloque | M29: ='Cálculo cemento'!$G$24 -> 60000
E30: Prefabricado n°1 30-40 MPa | H30: ='Ring-pan y Huella CO2'!H40 -> 180 | I30: ='Ring-pan y Huella CO2'!I40 -> 300 | J30: =IFERROR(+H30/I30,0) -> 0.6 | K30: =IFERROR(+$H$15*$H$16*((1/J30)-0.5),0) -> 23.33333333 | L30: ='Ring-pan y Huella CO2'!J40 -> 600 | M30: ='Cálculo cemento'!$G$20 -> 18000
E31: Prefabricado n°2 30-40 MPa | H31: ='Ring-pan y Huella CO2'!H41 -> 180 | I31: ='Ring-pan y Huella CO2'!I41 -> 430 | J31: =IFERROR(+H31/I31,0) -> 0.4186046512 | K31: =IFERROR(+$H$15*$H$16*((1/J31)-0.5),0) -> 37.77777778 | L31: ='Ring-pan y Huella CO2'!J41 -> 600 | M31: ='Cálculo cemento'!$G$21 -> 12000
E32: Total estimado Prefabricado | M32: ='Cálculo cemento'!$G$24 -> 60000
E33: Vigueta 45 Mpa | H33: ='Ring-pan y Huella CO2'!$H$42 -> 180 | I33: ='Ring-pan y Huella CO2'!$I$42 -> 450 | J33: =IFERROR(+H33/I33,0) -> 0.4 | K33: =IFERROR(+$H$15*$H$16*((1/J33)-0.5),0) -> 40 | L33: ='Ring-pan y Huella CO2'!J42 -> 600 | M33: ='Cálculo cemento'!$I$22 -> 5400
E34: Durmiento 65 Mpa | H34: ='Ring-pan y Huella CO2'!$H$43 -> 0 | I34: ='Ring-pan y Huella CO2'!$I$43 -> 0 | J34: =IFERROR(+H34/I34,0) -> 0 | K34: =IFERROR(+$H$15*$H$16*((1/J34)-0.5),0) -> 0 | L34: ='Ring-pan y Huella CO2'!J43 -> 0 | M34: ='Cálculo cemento'!$I$23 -> 0
C37: ='Ring-pan y Huella CO2'!$E$38 -> Bloque 10-20 MPa | E37: HUMEDAD : | G37: AUMENTO A/C : | I37: Nueva MPa | J37: PERDIDAS : | U37: Tipo concreto | V37: m3/año | AC37: Ahorro entre Olla y Planetario o Twin-shaft :
E38: Variación | F38: Agua l adicional | G38: A/C nuevo | H38: Variación + | I38: inferior | J38: Mpa | K38: kg cem/m3 | L38: Cemento USD/año
E39: 0.01 | F39: =+$L$27*E39 -> 0 | G39: =IFERROR(+($H$27+F39)/$I$27,0) -> 0 | H39: =IFERROR(+G39-$J$27,0) -> 0 | I39: =IFERROR(+$H$15*$H$16*((1/G39)-0.5),0) -> 0 | J39: =IFERROR(+I39-$K$27,0) -> 0 | K39: =-J39*$H$17 -> 0 | L39: =+K39*$N$3*'Cálculo cemento'!$G$18 -> 0 | AC39: 15 Mpa* | AD39: 20 | AE39: =+AD39/AF39 -> 0.1333333333 | AF39: 150 | AG39: 0.1333333333
E40: 0.02 | F40: =+$L$27*E40 -> 0 | G40: =IFERROR(+($H$27+F40)/$I$27,0) -> 0 | H40: =IFERROR(+G40-$J$27,0) -> 0 | I40: =IFERROR(+$H$15*$H$16*((1/G40)-0.5),0) -> 0 | J40: =IFERROR(+I40-$K$27,0) -> 0 | K40: =-J40*$H$17 -> 0 | L40: =+K40*$N$3*'Cálculo cemento'!$G$18 -> 0 | U40: <25Mpa | V40: =+I40 -> 0 | W40: =+F40 -> 0 | AC40: 25 MPa | AD40: 26.7875 | AE40: =+AD40/AF40 -> 0.10715 | AF40: 250 | AG40: 0.10715
E41: 0.03 | F41: =+$L$27*E41 -> 0 | G41: =IFERROR(+($H$27+F41)/$I$27,0) -> 0 | H41: =IFERROR(+G41-$J$27,0) -> 0 | I41: =IFERROR(+$H$15*$H$16*((1/G41)-0.5),0) -> 0 | J41: =IFERROR(+I41-$K$27,0) -> 0 | K41: 0 | L41: =+K41*$N$3*'Cálculo cemento'!$G$18 -> 0 | U41: 25 MPa | V41: =+I41 -> 0 | W41: =+F41 -> 0 | AC41: 30 MPa | AD41: 26.65 | AE41: =+AD41/AF41 -> 0.08883333333 | AF41: 300 | AG41: 0.08883333333
C42: ='Ring-pan y Huella CO2'!$E$39 -> 25 MPa | E42: HUMEDAD : | G42: AUMENTO A/C : | I42: Nueva MPa | J42: PERDIDAS :
E43: Variación | F43: Agua l adicional | G43: A/C nuevo | H43: Variación + | I43: inferior | J43: Mpa | K43: kg cem/m3 | L43: Cemento USD/año
E44: 0.01 | F44: =+$L$28*E44 -> 6 | G44: =IFERROR(+($H$28+F44)/$I$28,0) -> 0.744 | H44: =IFERROR(+G44-$J$28,0) -> 0.024 | I44: =IFERROR(+$H$15*$H$16*((1/G44)-0.5),0) -> 16.88172043 | J44: =IFERROR(+I44-$K$28,0) -> -0.8960573477 | K44: =-J44*$H$17 -> 4.480286738 | L44: =+K44*$N$3*'Cálculo cemento'!$G$19 -> 9408.602151
E45: 0.02 | F45: =+$L$28*E45 -> 12 | G45: =IFERROR(+($H$28+F45)/$I$28,0) -> 0.768 | H45: =IFERROR(+G45-$J$28,0) -> 0.048 | I45: =IFERROR(+$H$15*$H$16*((1/G45)-0.5),0) -> 16.04166667 | J45: =IFERROR(+I45-$K$28,0) -> -1.736111111 | K45: =-J45*$H$17 -> 8.680555556 | L45: =+K45*$N$3*'Cálculo cemento'!$G$19 -> 18229.16667
E46: 0.03 | F46: 18 | G46: 0.792 | H46: 0.072 | I46: 15.25252525 | J46: -2.525252525 | K46: 12.62626263 | L46: =+K46*$N$3*'Cálculo cemento'!$G$19 -> 26515.15152
C47: Estimación bloque volumen total 2 % | L47: =IFERROR(+((L40+L45)/M29)*$H$20,0) -> 18229.16667
C48: ='Ring-pan y Huella CO2'!$E$40 -> 30 MPa | E48: HUMEDAD : | G48: AUMENTO A/C : | I48: Nueva MPa | J48: PERDIDAS :
E49: Variación | F49: Agua l adicional | G49: A/C nuevo | H49: Variación + | I49: inferior | J49: Mpa | K49: kg cem/m3 | L49: Cemento USD/año
E50: 0.01 | F50: =+$L$30*E50 -> 6 | G50: =IFERROR(+($H$30+F50)/$I$30,0) -> 0.62 | H50: =IFERROR(+G50-$J$30,0) -> 0.02 | I50: =IFERROR(+$H$15*$H$16*((1/G50)-0.5),0) -> 22.25806452 | J50: =IFERROR(+I50-$K$30,0) -> -1.075268817 | K50: =-J50*$H$17 -> 5.376344086 | L50: =+K50*$N$3*'Cálculo cemento'!$G$20 -> 11290.32258
E51: 0.02 | F51: =+$L$30*E51 -> 12 | G51: =IFERROR(+($H$30+F51)/$I$30,0) -> 0.64 | H51: =IFERROR(+G51-$J$30,0) -> 0.04 | I51: =IFERROR(+$H$15*$H$16*((1/G51)-0.5),0) -> 21.25 | J51: =IFERROR(+I51-$K$30,0) -> -2.083333333 | K51: =-J51*$H$17 -> 10.41666667 | L51: =+K51*$N$3*'Cálculo cemento'!$G$20 -> 21875
E52: 0.03 | F52: 18 | G52: 0.66 | H52: 0.06 | I52: 20.3030303 | J52: -3.03030303 | K52: 15.15151515 | L52: =+K52*$N$3*'Cálculo cemento'!$G$20 -> 31818.18182
C53: ='Ring-pan y Huella CO2'!$E$41 -> 35 MPa | E53: HUMEDAD : | G53: AUMENTO A/C : | I53: Nueva MPa | J53: PERDIDAS :
E54: Variación | F54: Agua l adicional | G54: A/C nuevo | H54: Variación + | I54: inferior | J54: Mpa | K54: kg cem/m3 | L54: Cemento USD/año
E55: 0.01 | F55: =+$L$31*E55 -> 6 | G55: =IFERROR(+($H$31+F55)/$I$31,0) -> 0.4325581395 | H55: =IFERROR(+G55-$J$31,0) -> 0.01395348837 | I55: =IFERROR(+$H$15*$H$16*((1/G55)-0.5),0) -> 36.23655914 | J55: =IFERROR(+I55-$K$31,0) -> -1.541218638 | K55: =-J55*$H$17 -> 7.70609319 | L55: =+K55*$N$3*'Cálculo cemento'!$G$21 -> 10788.53047
E56: 0.02 | F56: =+$L$31*E56 -> 12 | G56: =IFERROR(+($H$31+F56)/$I$31,0) -> 0.4465116279 | H56: =IFERROR(+G56-$J$31,0) -> 0.02790697674 | I56: =IFERROR(+$H$15*$H$16*((1/G56)-0.5),0) -> 34.79166667 | J56: =IFERROR(+I56-$K$31,0) -> -2.986111111 | K56: =-J56*$H$17 -> 14.93055556 | L56: =+K56*$N$3*'Cálculo cemento'!$G$21 -> 20902.77778
E57: 0.03 | F57: 18 | G57: 0.4604651163 | H57: 0.04186046512 | I57: 33.43434343 | J57: -4.343434343 | K57: 21.71717172 | L57: =+K57*$N$3*'Cálculo cemento'!$G$21 -> 30404.0404
C58: Estimación prefabricado volumen total 2% | L58: =IFERROR(+((L51+L56)/M32)*$H$20,0) -> 42777.77778
C59: ='Ring-pan y Huella CO2'!$E$42 -> Vigueta 350-45 Mpa | E59: HUMEDAD : | G59: AUMENTO A/C : | I59: Nueva MPa | J59: PERDIDAS :
E60: Variación | F60: Agua l adicional | G60: A/C nuevo | H60: Variación + | I60: inferior | J60: Mpa | K60: kg cem/m3 | L60: Cemento USD/año
E61: 0.01 | F61: =+$L$33*E61 -> 6 | G61: =IFERROR(+($H$33+F61)/$I$33,0) -> 0.4133333333 | H61: =+G61-$J$33 -> 0.01333333333 | I61: =IFERROR(+$H$15*$H$16*((1/G61)-0.5),0) -> 38.38709677 | J61: =+I61-$K$33 -> -1.612903226 | K61: =-J61*$H$17 -> 8.064516129 | L61: =+K61*$N$3*'Cálculo cemento'!$G$22 -> 11290.32258
E62: 0.02 | F62: =+$L$33*E62 -> 12 | G62: =IFERROR(+($H$33+F62)/$I$33,0) -> 0.4266666667 | H62: =+G62-$J$33 -> 0.02666666667 | I62: =IFERROR(+$H$15*$H$16*((1/G62)-0.5),0) -> 36.875 | J62: =+I62-$K$33 -> -3.125 | K62: =-J62*$H$17 -> 15.625 | L62: =+K62*$N$3*'Cálculo cemento'!$G$22 -> 21875
E63: 0.03 | F63: 18 | G63: =IFERROR(+($H$33+F63)/$I$33,0) -> 0.44 | H63: 0.04 | I63: =IFERROR(+$H$15*$H$16*((1/G63)-0.5),0) -> 35.45454545 | J63: -4.545454545 | K63: 22.72727273 | L63: =+K63*$N$3*'Cálculo cemento'!$G$22 -> 31818.18182
C64: ='Ring-pan y Huella CO2'!$E$43 -> Durmiente 65 Mpa | E64: HUMEDAD : | G64: AUMENTO A/C : | I64: Nueva MPa | J64: PERDIDAS :
E65: Variación | F65: Agua l adicional | G65: A/C nuevo | H65: Variación + | I65: inferior | J65: Mpa | K65: kg cem/m3 | L65: Cemento USD/año
E66: 0.01 | F66: =+$L$34*E66 -> 0 | G66: =IFERROR(+($H$34+F66)/$I$34,0) -> 0 | H66: =+G66-$J$34 -> 0 | I66: =IFERROR(+$H$15*$H$16*((1/G66)-0.5),0) -> 0 | J66: =+I66-$K$34 -> 0 | K66: =-J66*$H$17 -> 0 | L66: =+K66*$N$3*'Cálculo cemento'!$G$23 -> 0
E67: 0.02 | F67: =+$L$34*E67 -> 0 | G67: =IFERROR(+($H$34+F67)/$I$34,0) -> 0 | H67: =+G67-$J$34 -> 0 | I67: =IFERROR(+$H$15*$H$16*((1/G67)-0.5),0) -> 0 | J67: =+I67-$K$34 -> 0 | K67: =-J67*$H$17 -> 0 | L67: =+K67*$N$3*'Cálculo cemento'!$G$23 -> 0
E68: 0.03 | F68: 0 | G68: =IFERROR(+($H$34+F68)/$I$34,0) -> 0 | H68: 0 | I68: =IFERROR(+$H$15*$H$16*((1/G68)-0.5),0) -> 0 | J68: 0 | K68: 0 | L68: =+K68*$N$3*'Cálculo cemento'!$G$23 -> 0
G70: Suma estimado perdidas a 2 % | J70: =+J47+J58+J62+J67 -> -3.125 | L70: =+L47+L58+L62+L67 -> 82881.94444
J71: Necesita un Macro VisualBasic para extraer o calcular
J72: la bajada de MPa sola o de varios concretos

Sheet Cálculo CO2 directo (hidden)
E3: Costo cemento : | G3: ='Ring-pan y Huella CO2'!$H$1 -> 2.1 | H3: Pesos/kg
E4: 1 USD = | G4: ='Ring-pan y Huella CO2'!$H$2 -> 18 | H4: Pesos
E7: MEZCLADO CENTRAL : 4. SU SITUACION. | M7: Hoja 2 : cálculos.
E8: 4.0.5. Cálculo de sus ahorros de USD si utiliza un Mobile Twin-shaft 4.5 m3
E9: al lugar de Plandta dosificadora+Hormigonera ("Olla").
E10: ='Ring-pan y Huella CO2'!$B$4 -> EQUIPO FRANCES SA DE CV, Colima, 21 Jun. 2020, versión Sep. 22 2022.
E12: DATOS FIJOS :
E13: ´-Tipo de cambio 1 Pesos por un USD | J13: Pesos | K13: 20
E14: -Hora de trabajo de una olla al año = 8 horas x 5 dias x 50 semanas = | J14: horas | K14: 2000
J15: segundos | K15: =+K14*3600 -> 7200000
E16: ´-Precio de una Olla+Camión = | J16: USD | K16: 140000
E17: ´Consumo gazolina por hora | J17: Litro | K17: 8
E18: ´Consumo gazolina por segundo | J18: Segundo | K18: =+K17/3600 -> 0.002222222222
E19: ´Costo gazolina por hora = 8 litros x 22 Pesos / tipo cambio = | J19: USD por hora | K19: =8*22/K13 -> 8.8
J20: USD por segundo | K20: =+K19/3600 -> 0.002444444444
E21: ´Volumen de concreto por olla = | J21: m3 | K21: 8
E22: CALCULO DEL CO2 POR M3 DEL MOTOR DE LA REVOLVEDORA :
E23: A 15 C°C un litro de diesel pesar, masa volumétrica kg/m3 | J23: gramo/l | K23: 835
E24: Contiene en atomo de Carbono C | J24: % | K24: 86.2
E25: Cantidad de C pero litro de diesel | J25: gramo | K25: 720
E26: Para quemar este C, hace falta en Oxigeno O | J26: gramo | K26: 1920
E27: Cantidad de CO2 producido C+O por litro | J27: gramo/litro | K27: =+K26+K25 -> 2640
E28: Cantidad de CO2 producido C+O por litro | J28: kg/litro | K28: =+K27/1000 -> 2.64
E30: CALCULO DEL CO2 POR M3 DEL MOTOR DE LA REVOLVEDORA : | K30: Primera estimación transporte :
K31: 20 litros/100 km si 100km/jourx4 semainex12 mois=24,000 km
E32: TIEMPO Y DEL MEZCLADO FIJO CON LA OLLA POR M3. | K32: 4 voyage/jour soient 32 m3 donc 20/32=0.625 l/m3
F33: Tiempo de | G33: Tiempo seg. | H33: EMISION CO2 | K33: ´x 2,64 g CO"=1.65 kg CO2/m3
F34: mezclado min. | G34: por m3 | H34: Litro diesel/m3 | I34: CO2 g/m3 | J34: CO2 kg/m3
E35: ='Ring-pan y Huella CO2'!E103 -> Bloque 10-20 MPa | F35: 3 | G35: =+(F35*60)/$K$21 -> 22.5 | H35: =+G35*$K$18 -> 0.05 | I35: =+H35*$K$27 -> 132 | J35: =+I35/1000 -> 0.132
E36: ='Ring-pan y Huella CO2'!E104 -> 25 MPa | F36: 5 | G36: 37.5 | H36: 0.08333333333 | I36: 220 | J36: 0.22
E37: ='Ring-pan y Huella CO2'!E105 -> 30 MPa | F37: 7 | G37: 52.5 | H37: 0.1166666667 | I37: 308 | J37: 0.308
E38: ='Ring-pan y Huella CO2'!E106 -> 35 MPa | F38: 10 | G38: 75 | H38: 0.1666666667 | I38: 440 | J38: 0.44
E39: ='Ring-pan y Huella CO2'!E107 -> Vigueta 350-45 Mpa | F39: 13 | G39: 97.5 | H39: 0.2166666667 | I39: 572 | J39: 0.572
E40: ='Ring-pan y Huella CO2'!E108 -> Durmiente 65 Mpa | F40: 15 | G40: 112.5 | H40: 0.25 | I40: 660 | J40: 0.66
E43: SI UTILIZA REVOLVEDORA : EMISION CO2 : G/M3 :
F44: % | G44: m3/año | H44: Kg CO2 emitidos por año
E45: ='Ring-pan y Huella CO2'!E103 -> Bloque 10-20 MPa | F45: ='Cálculo cemento'!F18 -> 0 | G45: ='Cálculo cemento'!G18 -> 0 | H45: =+G45*J35 -> 0
E46: ='Ring-pan y Huella CO2'!E104 -> 25 MPa | F46: ='Cálculo cemento'!F19 -> 0.3 | G46: ='Cálculo cemento'!G19 -> 18000 | H46: 3960 | I46: kg/año
E47: ='Ring-pan y Huella CO2'!E105 -> 30 MPa | F47: ='Cálculo cemento'!F20 -> 0.3 | G47: ='Cálculo cemento'!G20 -> 18000 | H47: 5544 | I47: kg/año
E48: ='Ring-pan y Huella CO2'!E106 -> 35 MPa | F48: ='Cálculo cemento'!F21 -> 0.2 | G48: ='Cálculo cemento'!G21 -> 12000 | H48: 5280 | I48: kg/año
E49: ='Ring-pan y Huella CO2'!E107 -> Vigueta 350-45 Mpa | F49: ='Cálculo cemento'!F22 -> 0.2 | G49: ='Cálculo cemento'!G22 -> 12000 | H49: 6864 | I49: kg/año
E50: ='Ring-pan y Huella CO2'!E108 -> Durmiente 65 Mpa | F50: ='Cálculo cemento'!F23 -> 0 | G50: ='Cálculo cemento'!G23 -> 0 | H50: 0 | I50: kg/año
F51: Total | G51: =+SUM(G46:G50) -> 60000 | H51: =+SUM(H46:H50) -> 21648 | I51: kg/año
F52: ='[2]Pagina a utilizar'!$E$28 -> 200000 | H52: =+(H51/G51)*F52 -> 72160

Sheet Cálculo huella CO2 (hidden)
E3: Costo cemento : | J3: ='Ring-pan y Huella CO2'!$H$1 -> 2.1 | K3: Pesos/kg
E4: 1 USD = | J4: ='Ring-pan y Huella CO2'!$H$2 -> 18 | K4: Pesos
E6: MEZCLADO CENTRAL : 4. SU SITUACION. | P6: Hoja 2 : cálculos.
E7: 4.0.5. Cálculo de sus ahorros de USD si utiliza un Mobile Twin-shaft 4.5 m3
E8: al lugar de Plandta dosificadora+Hormigonera ("Olla").
E9: ='Ring-pan y Huella CO2'!$B$4 -> EQUIPO FRANCES SA DE CV, Colima, 21 Jun. 2020, versión Sep. 22 2022.
E11: Leyenda color de poliza : | G11: Entrada dato | H11: Entrada dato | I11: Cálculo | J11: Texto | K11: Título
G12: esta hoja | H12: otra hoja
E13: CONSTANTES : | G13: Unidad | H13: Valor | I13: Precisión
E14: Cemento :
E15: Emisión de CO2 para fabricar | G15: kg/t | H15: ='Ring-pan y Huella CO2'!$L$13 -> 622 | I15: Cemex 791 kg/t (objectif 475 en 2030 soit 40% de moins), Holcim serait à 590 kg
E16: Emisión de CO2 para fabricar | G16: gramo/kg | H16: =+H15/1000 -> 0.622
E17: Electricidad :
E18: Emisión de CO2 para producir electricidad en México | G18: tCO2/MWh | H18: 494 | I18: Ver Estudio Ecologia 0.1. Coeficiente oficial Link
E19: Emisión de CO2 para producir electricidad en México | G19: kgCO2/kWh | H19: =+H18/1000 -> 0.494
E20: Emisión de CO2 para producir electricidad en México | G20: gCO2/kWh | H20: =+H19*1000 -> 494
E21: kiloWatt | G21: Watt (Joule/s) | H21: 1000
E22: kiloWatt-hora = kWh = | G22: Joule | H22: 3600000 | I22: Energia (o trabajo) de un aparato de 1000 Watt (1 Joule/segundo) durante una hora
G23: MJoule | H23: =+H22/1000000 -> 3.6
E24: VARIABLES : | G24: Unidad | H24: Valor
E25: Producción anual; ver Tabla Entrada datos | H25: ='Ring-pan y Huella CO2'!$G$45 -> 60000 | I25: m3
E26: Eficiencia jemorada en tiempo Twin-shaft Liebherr / Twin-shaft Otra mrca | H26: 0.15 | I26: %
E27: Eficiencia jemorada en tiempo Ring-pan Liebherr para cemento | H27: 0.15 | I27: %
E29: CONSUMO ELECTRICIDAD : | G29: Para concreto 30 MPa :
F30: Mezclado | G30: Mezclado | H30: Mezclado | I30: Mezclado | J30: Mezclado | K30: Mezclado | L30: Potencia | N30: Energia utilizada | Q30: Huella kg CO2 | S30: J/m3 | T30: Eficiencia | U30: Precio | V30: Consumo
F31: m3 | G31: tiempo min | H31: segundo | I31: s/m3 | J31: min/m3 | K31: hora/m3 | L31: kW | M31: J/s | N31: por m3 J/m3 | O31: kWh/m3 | P31: kWh total | Q31: por m3 | R31: total | S31: aplicado | T31: potencia/aplicado | U31: KWh | V31: KWh
E32: Revolvedora 8 m3 sobre chasis Diesel Tier 1 | F32: 8 | G32: 7 | H32: =+G32*60 -> 420 | I32: =+H32/F32 -> 52.5 | J32: =+I32/60 -> 0.875 | K32: =+J32/60 -> 0.01458333333 | V32: Pesos | W32: USD
E33: Revolvedora 8 m3sobre chasis Gas | F33: 8 | G33: 7 | H33: =+G33*60 -> 420 | I33: =+H33/F33 -> 52.5 | J33: =+I33/60 -> 0.875 | K33: 0.01458333333
E34: Revolvedora 8 m3 eléctrica sobre chasis diesel | F34: 8 | G34: 7 | H34: 420 | I34: 52.5 | J34: =+I34/60 -> 0.875 | K34: 0.01458333333 | L34: 28 | M34: =+L34*1000 -> 28000 | N34: =+M34*I34 -> 1470000 | O34: =+N34/$H$22 -> 0.4083333333 | P34: =+O34*$H$25 -> 24500 | Q34: =+O34*$H$19 -> 0.2017166667 | R34: =+Q34*$H$25 -> 12103 | S34: 541000 | T34: =+S34/N34 -> 0.3680272109 | U34: 0.786 | V34: =+U34*P34 -> 19257 | W34: =+V34/$J$4 -> 1069.833333
E35: Tilt 9 m3 | F35: 9 | G35: 5 | H35: 300 | I35: 33.33333333 | J35: =+I35/60 -> 0.5555555556 | K35: 0.009259259259 | L35: 150 | M35: =+L35*1000 -> 150000 | N35: =+M35*I35 -> 5000000 | O35: =+N35/$H$22 -> 1.388888889 | P35: =+O35*$H$25 -> 83333.33333 | Q35: =+O35*$H$19 -> 0.6861111111 | R35: =+Q35*$H$25 -> 41166.66667 | S35: 541000 | T35: =+S35/N35 -> 0.1082 | U35: 0.786 | V35: =+U35*P35 -> 65500 | W35: =+V35/$J$4 -> 3638.888889
E36: Mezclador otro 3.5 | F36: 3.5 | G36: 1 | H36: 60 | I36: 17.14285714 | J36: =+I36/60 -> 0.2857142857 | K36: 0.004761904762 | L36: 110 | M36: 110000 | N36: 1885714.286 | O36: =+N36/$H$22 -> 0.5238095238 | P36: =+O36*$H$25 -> 31428.57143 | Q36: 0.2587619048 | R36: 15525.71429 | U36: 0.786 | V36: 24702.85714 | W36: 1372.380952
E37: Mezclador LIEBHERR 3.5 | F37: 3.5 | G37: =+G36*(1-H26) -> 0.85 | H37: 51 | I37: 14.57142857 | J37: =+I37/60 -> 0.2428571429 | K37: 0.004047619048 | L37: 110 | M37: 110000 | N37: 1602857.143 | O37: =+N37/$H$22 -> 0.4452380952 | P37: =+O37*$H$25 -> 26714.28571 | Q37: 0.219947619 | R37: 13196.85714 | U37: 0.786 | V37: 20997.42857 | W37: 1166.52381
E38: Mezclador Ring-pan 2.5 D | F38: 2.5 | G38: =+G37*(1-H28) -> 0.85 | H38: =+G38*60 -> 51 | I38: =+H38/F38 -> 20.4 | J38: =+I38/60 -> 0.34 | K38: =+J38/60 -> 0.005666666667 | L38: 110 | M38: =+L38*1000 -> 110000 | N38: =+M38*I38 -> 2244000 | O38: =+N38/$H$22 -> 0.6233333333 | P38: =+O38*$H$25 -> 37400 | Q38: =+O38*$H$19 -> 0.3079266667 | R38: =+Q38*$H$25 -> 18475.6 | U38: 0.786 | V38: 29396.4 | W38: 1633.133333
R39: Resultados
E40: EMISION CEMENTO EN EXCESO | F40: Consumo | G40: Huella kg CO2 | R40: a hoja entrada
E41: AL MEZCLADOR : | F41: cemento t | G41: por t | H41: total
E42: Revolvedora 8 m3 sobre chasis Diesel Tier 1 | F42: ='Cálculo cemento'!$G$43 -> 2524.86 | G42: =+$H$15 -> 622 | H42: =+G42*F42 -> 1570462.92
E43: Revolvedora 8 m3sobre chasis Gas | F43: ='Cálculo cemento'!$G$43 -> 2524.86 | G43: =+$H$15 -> 622 | H43: =+(F43*$H$16)*1000 -> 1570462.92
E44: Revolvedora 8 m3 eléctrica sobre chasis diesel | F44: ='Cálculo cemento'!$G$43 -> 2524.86 | G44: 622 | H44: =+(F44*$H$16)*1000 -> 1570462.92
E45: Tilt 9 m3 (revolvedora - 3%) | F45: ='Cálculo cemento'!$L$43 -> A calculer | G45: 622 | H45: =+(F45*$H$16)*1000 -> 
E46: Mezclador otro 3.5
E47: Mezclador LIEBHERR 3.5
